Cogmind - Beta 9.4 @@@ ROGUE MODE // 2020.01.15 @ 00:26:48 // Winter2019/RPGLIKE Player: Rumbl3 Result: Escaped! Performance ------------- Evolutions (9) 4500 Regions Visited (36) 7200 Robots Destroyed (426) 2130 Value Destroyed (23512) 23512 Prototype IDs (77) 1540 Alien Tech Used (0) 0 Bonus (23111) 23111 TOTAL SCORE: 61993 Bonus ------- Triggered High Security 1500 Triggered Max Security 1000 High Alert Combat Kills 6164 Follower Combat Kills 5398 Entered Garrisons 1200 Used RIF Installer 3000 Network Hubs Disabled 400 Aligned with FarCom 300 Met Data Miner 300 Built Enhanced Grunts 300 A7 Reached Mainframe 300 Met R17 at Cetus 500 Met R17 at Research 2000 Scanned by Researcher 500 Win 3000 Friendly Fire -2751 Cogmind --------- Core Integrity 327/2150 Matter 217/300 Energy 1031/1040 System Corruption 9% Temperature Cool (0) Movement Hovering (42) Location To Epsilon Eridani Parts ------- > --- POWER (2) -------- Micro Fission Core Micro Fission Core > --- PROPULSION (3) --- Cooled Aerolev Unit Cooled Aerolev Unit Cooled Antigrav System > --- UTILITY (14) ----- Advanced Energy Well Long-range Sensor Array Advanced Signal Interpreter Experimental Targeting Computer Advanced Target Analyzer Advanced Core Analyzer Relay Coupler [Swarmer] (84) Relay Coupler [Brawler] (71) Relay Coupler [Duelist] (19) Relay Coupler [Sentry] (28) Relay Coupler [Hunter] (1) > --- WEAPON (3) ------- Long-range Missile Launcher Advanced Remote Datajack Longsword +1 > --- INVENTORY (7) ---- Protomatter-38 Improved KE Penetrator Improved KE Penetrator Improved KE Penetrator Improved Proton Missile Launcher Segregator Peak State ------------ > --- POWER ------------ Micro Fission Core Micro Fission Core > --- PROPULSION ------- Cooled Aerolev Unit Improved Linear Gravjet Cooled Antigrav System > --- UTILITY ---------- Advanced Energy Well Long-range Sensor Array Advanced Signal Interpreter Experimental Terrain Scanner Experimental Targeting Computer Advanced Target Analyzer Advanced Core Analyzer Advanced Reaction Control System Centrium Light Armor Plating Relay Coupler [Swarmer] Relay Coupler [Brawler] Relay Coupler [Duelist] Relay Coupler [Sentry] Relay Coupler [Hunter] > --- WEAPON ----------- Improved KE Penetrator Improved KE Penetrator Improved KE Penetrator > --- INVENTORY -------- Cooled Aerolev Unit Improved Proton Missile Launcher Long-range Missile Launcher Advanced Remote Datajack Segregator Longsword +1 [Rating: 139] Favorites ----------- Power Micro Fission Core Engine Heavy Deuterium Engine Power Core Micro Fission Core Reactor Quantum Reactor Propulsion Cooled Aerolev Unit Leg Carbon-fiber Leg Wheel Wheel Hover Unit Cooled Aerolev Unit Flight Unit VTOL Module Utility Advanced Signal Interpreter Device Experimental Terrain Scanner Storage Advanced Energy Well Processor Advanced Signal Interpreter Hackware Relay Coupler [Sentry] Protection Centrium Medium Armor Plating Weapon Improved KE Penetrator Energy Gun Spread Laser Energy Cannon Firepult Ballistic Gun Improved KE Penetrator Launcher Improved Proton Missile Launcher Special Weapon Advanced Remote Datajack Slashing Weapon Longsword +1 Special Melee Weapon Improved Datajack Build | -11 -10 -10 -9 -9 -9 -8 -8 -7 -7 -7 -7 -6 -6 -6 -6 -6 -6 -6 -6 -5 -5 -5 -5 -4 -4 -4 -4 -4 -4 -3 -3 -3 -2 -1 -1 -1 ------- Run | Scr Mat Min Mat Min Exi Min Mat Fac Low Low Dat Pro Fac Gar Fac Ext Cet Arc Hub Fac Gar Fac Gar Fac Gar Fac Upp Upp War Pro Res Gar Res Acc Gar Acc Slots Evolved 18 | 3 . 1 1 . 1 . 2 3 . . . 1 . 1 . . 1 . . 1 . . . . 1 . . . . . . 1 1 . . . Power 1 | . . . . . . . . . . . . . . . . . . . . 1 . . . . . . . . . . . . . . . . Propulsion 2 | 1 . . . . . . . . . . . . . . . . 1 . . . . . . . . . . . . . . . . . . . Utility 13 | 1 . . 1 . 1 . 2 3 . . . 1 . 1 . . . . . . . . . . 1 . . . . . . 1 1 . . . Weapon 2 | 1 . 1 . . . . . . . . . . . . . . . . . . . . . . . . . . . . . . . . . . Parts Attached 331 | 6 7 1 21 1 5 2 23 16 1 . . 4 . 10 5 8 12 . 1 3 25 21 17 10 24 2 4 5 . 5 24 22 8 2 23 13 Power 19 | . . . 5 . . . 4 3 . . . . . . . . 1 . . 2 . 1 . . 1 . 1 . . . . . . . . 1 Engine 13 | . . . 5 . . . 4 3 . . . . . . . . . . . 1 . . . . . . . . . . . . . . . . Core 5 | . . . . . . . . . . . . . . . . . . . . 1 . 1 . . 1 . 1 . . . . . . . . 1 Reactor 1 | . . . . . . . . . . . . . . . . . 1 . . . . . . . . . . . . . . . . . . . Propulsion 36 | 2 1 . 4 1 . . 2 2 . . . . . . . . 1 . . . 9 8 . . 1 . . . . . 2 . . 2 . 1 Treads . | . . . . . . . . . . . . . . . . . . . . . . . . . . . . . . . . . . . . . Leg 1 | . . . . . . . . . . . . . . . . . . . . . 1 . . . . . . . . . . . . . . . Wheel 2 | 2 . . . . . . . . . . . . . . . . . . . . . . . . . . . . . . . . . . . . Hover 25 | . 1 . 4 1 . . 2 2 . . . . . . . . 1 . . . . 8 . . 1 . . . . . 2 . . 2 . 1 Flight 8 | . . . . . . . . . . . . . . . . . . . . . 8 . . . . . . . . . . . . . . . Utility 116 | 3 1 . 4 . 1 . 11 6 . . . 1 . 7 4 3 1 . . 1 8 4 11 2 10 1 . 2 . 1 11 8 4 . 9 2 Device 34 | 1 . . . . 1 . 6 . . . . . . 3 2 1 . . . . . 2 6 2 1 1 . . . . 5 1 1 . 1 . Storage 6 | 1 . . . . . . . . . . . . . 1 . . . . . . . . . . . . . . . . 1 . . . 2 1 Processor 20 | 1 1 . 1 . . . 4 4 . . . 1 . . 1 1 . . . 1 . 1 . . . . . . . . 1 . 2 . 1 . Hackware 35 | . . . . . . . . . . . . . . 3 . 1 . . . . 8 . 5 . 7 . . . . . . 6 . . 5 . Protection 21 | . . . 3 . . . 1 2 . . . . . . 1 . 1 . . . . 1 . . 2 . . 2 . 1 4 1 1 . . 1 Artifact . | . . . . . . . . . . . . . . . . . . . . . . . . . . . . . . . . . . . . . Weapon 160 | 1 5 1 8 . 4 2 6 5 1 . . 3 . 3 1 5 9 . 1 . 8 8 6 8 12 1 3 3 . 4 11 14 4 . 14 9 Energy Gun 8 | . 1 1 3 . . . 3 . . . . . . . . . . . . . . . . . . . . . . . . . . . . . Energy Cannon 1 | . . . . . 1 . . . . . . . . . . . . . . . . . . . . . . . . . . . . . . . Ballistic Gun 60 | 1 2 . 3 . 1 . 2 4 1 . . 2 . 2 . 2 4 . . . 2 2 3 1 5 . . . . 1 4 5 2 . 7 4 Ballistic Cannon . | . . . . . . . . . . . . . . . . . . . . . . . . . . . . . . . . . . . . . Launcher 24 | . 2 . 2 . . 1 1 . . . . 1 . 1 . . 2 . . . . 1 1 1 1 . . 1 . 2 . 4 1 . 1 1 Special Weapon 34 | . . . . . . . . . . . . . . . . 2 3 . . . 3 3 2 3 2 . 2 1 . 1 3 3 1 . 3 2 Impact Weapon . | . . . . . . . . . . . . . . . . . . . . . . . . . . . . . . . . . . . . . Slashing Weapon 32 | . . . . . 2 1 . . . . . . . . 1 1 . . 1 . 3 2 . 3 4 1 1 1 . . 4 2 . . 3 2 Piercing Weapon . | . . . . . . . . . . . . . . . . . . . . . . . . . . . . . . . . . . . . . Special Melee Weapon 1 | . . . . . . . . 1 . . . . . . . . . . . . . . . . . . . . . . . . . . . . Unidentified Prototypes 18 | . . . 1 . 3 . 3 3 . . . . . 2 . . 2 . . . . . . . . . . . . . 3 . 1 . . . Parts Lost 13 | . . . 1 . . . 1 2 . . . . . . . . . . . . 1 . . . 3 . . . . 1 . . . . . 4 Power 2 | . . . 1 . . . . . . . . . . . . . . . . . . . . . 1 . . . . . . . . . . . Propulsion 2 | . . . . . . . . . . . . . . . . . . . . . 1 . . . . . . . . . . . . . . 1 Utility 7 | . . . . . . . . 1 . . . . . . . . . . . . . . . . 2 . . . . 1 . . . . . 3 Weapon 2 | . . . . . . . 1 1 . . . . . . . . . . . . . . . . . . . . . . . . . . . . Highest Loss Streak 3 | . . . 1 . . . 1 1 . . . . . . . . . . . . 1 . . . 2 . . . . 1 . . . . . 3 Average Slot Usage (%) 98 | . 100 100 99 100 96 90 99 97 100 100 100 100 100 100 100 100 100 100 99 94 98 100 99 100 96 100 100 100 100 93 99 99 100 100 99 98 Engine 4 | . 14 13 11 11 10 10 9 6 6 6 6 6 6 5 5 5 3 . . . 5 5 5 5 2 . . . . . . . . . . . Core 4 | . . . . . . . . . . . . . . . . . . . . 3 5 5 5 5 7 10 10 10 10 10 10 9 9 9 9 9 Hover 13 | . 8 13 22 22 21 20 18 12 13 13 13 12 12 11 11 11 12 16 15 10 3 11 15 15 15 15 15 15 15 15 15 14 13 13 13 12 Device 14 | . 14 13 11 11 10 10 23 22 20 20 20 18 18 17 17 17 16 16 16 15 10 10 10 10 9 10 10 10 10 10 14 12 13 13 12 12 Processor 17 | . 14 13 11 11 10 10 11 24 33 33 33 36 37 34 23 19 16 16 16 15 15 15 15 15 15 15 15 15 15 15 15 14 16 18 18 18 Hackware 15 | . . . . . . . . . . . . . . 2 17 20 22 22 22 21 26 26 25 25 24 30 30 30 30 22 20 22 27 27 25 25 Protection 5 | . . . 5 11 10 10 9 6 6 6 6 6 6 5 5 5 5 5 5 5 5 4 5 5 4 5 5 5 5 5 4 4 4 4 4 3 Energy Gun 1 | . 8 4 9 11 10 10 9 1 . . . . . . . . . . . . . . . . . . . . . . . . . . . . Ballistic Gun 11 | . 18 26 22 22 17 10 6 11 13 13 13 11 12 11 11 8 10 11 11 10 11 7 12 11 9 10 10 10 10 10 7 8 4 4 7 4 Launcher 1 | . 1 . 3 . . 1 2 1 . . . . . 1 . . 2 . . . . . . . 1 . . 2 . 3 . . . . . . Special Weapon 1 | . . . . . . . . . . . . . . . . 4 2 5 . . 2 3 2 2 2 4 3 1 . 1 3 2 3 4 2 3 Slashing Weapon 3 | . . . . . 3 8 9 6 6 6 6 6 6 4 4 2 . . 4 5 1 3 . . 1 . 1 . 5 . 4 2 4 4 1 2 Naked Turns . | . . . . . . . . . . . . . . . . . . . . . . . . . . . . . . . . . . . . . Heaviest Build 46 | 12 11 11 20 20 22 22 25 31 29 29 29 29 29 29 35 35 46 46 46 46 38 37 40 39 42 41 35 39 34 42 43 40 33 32 39 38 Greatest Support 65 | 31 31 11 17 19 24 24 30 34 34 34 34 34 34 34 39 39 47 47 47 36 36 60 60 60 60 60 60 60 60 60 65 63 63 63 63 65 Greatest Overweight (x) 1 | 1 . . 1 1 1 . . 1 . . . . . . 1 . 1 . 1 1 1 1 . . . . . . . . . . . . . . Average Overweight (x) . | . . . . 1 . . . . . . . . . . . . . . . . . . . . . . . . . . . . . . . . Largest Inventory Capacity 7 | 2 2 2 2 2 3 3 5 6 6 6 6 6 6 6 6 7 7 7 7 7 7 7 7 7 7 7 7 7 7 7 7 7 7 7 7 7 Average Capacity 5 | 1 2 2 2 2 2 3 3 5 6 6 6 6 6 6 6 6 7 7 7 7 7 7 7 7 7 7 7 7 7 7 7 7 7 7 7 7 Most Carried 7 | 2 2 2 2 2 3 3 5 6 6 6 6 6 6 6 6 7 7 7 7 7 7 7 7 7 7 7 7 7 7 7 7 7 7 7 7 7 Average Carried 5 | . 2 2 2 2 2 3 3 5 6 6 6 6 6 5 5 6 6 7 7 6 7 6 7 6 6 7 7 6 7 6 6 6 7 7 6 6 Final Capacity 7 | 2 2 2 2 2 3 3 5 6 6 6 6 6 6 6 6 7 7 7 7 7 7 7 7 7 7 7 7 7 7 7 7 7 7 7 7 7 Final Carried 7 | 2 2 2 2 2 3 3 5 6 6 6 6 6 6 6 6 7 7 7 7 7 7 7 7 7 7 7 7 7 7 6 6 7 7 7 7 6 Class Distribution -------------------- 46% | Bothacker-Scout 15% | Scavenger-Scout 8% | Scout 5% | Scavenger-Skirmisher 5% | Commander-Scout 4% | Mutant Dominant Class ---------------- Mutant | -10/Materials Mutant | -10/Mines Scavenger-Skirmisher | -9/Materials Scavenger-Skirmisher | -9/Mines Scavenger-Skirmisher | -9/Exiles Scavenger-Scout | -8/Mines Scout | -8/Materials Scout | -7/Factory Scavenger-Scout | -7/Lower Caves Scavenger-Scout | -7/Lower Caves Scavenger-Scout | -7/Data Miner Scavenger-Scout | -6/Proximity Caves Scavenger-Scout | -6/Factory Scavenger-Scout | -6/Garrison Bothacker-Scout | -6/Factory Commander-Scout | -6/Extension Commander-Scout | -6/Cetus Commander-Scout | -6/Archives Commander-Scout | -6/Hub_04(d) Bothacker-Scout | -5/Factory Scavenger-Gunner | -5/Garrison Bothacker-Scout | -5/Factory Bothacker-Scout | -5/Garrison Bothacker-Scout | -4/Factory Bothacker-Scout | -4/Garrison Bothacker-Scout | -4/Factory Bothacker-Scout | -4/Upper Caves Bothacker-Scout | -4/Upper Caves Bothacker-Scout | -4/Warlord Bothacker-Scout | -3/Proximity Caves Bothacker-Scout | -3/Research Bothacker-Scout | -3/Garrison Bothacker-Scout | -2/Research Bothacker-Scout | -1/Access Bothacker-Scout | -1/Garrison Bothacker-Scout | -1/Access Resources | -11 -10 -10 -9 -9 -9 -8 -8 -7 -7 -7 -7 -6 -6 -6 -6 -6 -6 -6 -6 -5 -5 -5 -5 -4 -4 -4 -4 -4 -4 -3 -3 -3 -2 -1 -1 -1 ----------- Run | Scr Mat Min Mat Min Exi Min Mat Fac Low Low Dat Pro Fac Gar Fac Ext Cet Arc Hub Fac Gar Fac Gar Fac Gar Fac Upp Upp War Pro Res Gar Res Acc Gar Acc Matter Collected 10046 | 353 227 34 738 10 . 90 260 147 . . . 94 . 184 50 220 473 64 202 74 815 340 727 303 1453 106 157 462 6 292 468 565 154 10 400 568 Remotely . | . . . . . . . . . . . . . . . . . . . . . . . . . . . . . . . . . . . . . Salvage Created 18157 | 217 320 109 1124 . . 630 1698 2247 . . . 243 382 1018 153 415 282 241 915 26 741 412 711 174 1099 134 412 1237 . 604 440 719 454 . 316 684 Parts 956 | 17 27 4 78 . . 21 98 122 . . . 12 15 44 12 13 19 10 32 9 44 26 45 12 47 4 7 43 . 34 37 42 22 . 28 32 Haulers Intercepted 10 | . . . 2 . . . 4 1 . . . . 1 . . . . . 2 . . . . . . . . . . . . . . . . . Recyclers Shooed 3 | . 1 . . . . . . . . . . . . . . . . . . . . . . 1 . . . . . . . . . . . 1 Parts Field Recycled . | . . . . . . . . . . . . . . . . . . . . . . . . . . . . . . . . . . . . . Retrieved Matter . | . . . . . . . . . . . . . . . . . . . . . . . . . . . . . . . . . . . . . Parts Self-Destructed 71 | . . . . . . . . . . . . 16 . . . . . . . . . . . . . . 7 30 . 18 . . . . . . Prevented 25 | . . . . . . . . . . . . 2 . . . . . . . . . . . . . . . 11 . 12 . . . . . . Kills | -11 -10 -10 -9 -9 -9 -8 -8 -7 -7 -7 -7 -6 -6 -6 -6 -6 -6 -6 -6 -5 -5 -5 -5 -4 -4 -4 -4 -4 -4 -3 -3 -3 -2 -1 -1 -1 ------- Run | Scr Mat Min Mat Min Exi Min Mat Fac Low Low Dat Pro Fac Gar Fac Ext Cet Arc Hub Fac Gar Fac Gar Fac Gar Fac Upp Upp War Pro Res Gar Res Acc Gar Acc Combat Hostiles Destroyed 334 | . 10 2 32 . . 13 34 48 . . . 5 5 21 3 4 6 2 9 1 17 8 19 6 20 . 3 16 . 16 3 13 4 . 7 7 Melee 136 | . . . . . . 10 28 48 . . . 3 5 18 3 2 . . 1 . 1 2 . . 1 . 1 . . . 2 2 4 . 1 4 Guns 132 | . 5 2 22 . . . . . . . . . . 1 . 2 2 2 7 1 16 3 15 1 15 . 2 13 . 6 1 8 . . 6 2 AOE 62 | . 5 . 10 . . 3 6 . . . . 2 . 2 . . 1 . 1 . . 3 4 5 3 . . 3 . 10 . 3 . . . 1 Classes Destroyed 19 | 3 4 . 2 . . 2 1 4 . . . . . . . 1 . . . . . . . . . . . . . . . . . . . 2 Worker 19 | 2 2 . 2 . . . . 3 . . . . . . 1 . . . 2 . . 1 . . . 1 . . . . 4 . 1 . . . Builder 4 | . . . . . . . 1 . . . . . . . . 1 . . 1 . . . . . . . . . . . . . . . . 1 Tunneler 9 | 5 1 . . . . . . . . . . . . . 1 . . . 1 . . . . . . . . . . . . . . . . 1 Hauler 10 | . . . 2 . . . 4 1 . . . . 1 . . . . . 2 . . . . . . . . . . . . . . . . . Recycler 7 | 1 . . 1 . . 1 . 2 . . . . . . . 1 . . . . . . . . . 1 . . . . . . . . . . Mechanic 1 | . . . . . . . . 1 . . . . . . . . . . . . . . . . . . . . . . . . . . . . Operator 9 | . 1 . 1 . . . . 1 . . . . . . . . . 1 1 1 . . . . . . . . . . 3 . . . . . Drone 1 | . . . . . . . . . . . . . . . . . . . . . . . . . . . . . . . . . . . . 1 Watcher 26 | . 2 . 3 . . . 5 . . . . . 1 . 1 . 1 . 1 . . 1 . 1 1 . . . . . 4 1 1 . . 3 Swarmer 80 | . 6 . 10 . . 3 11 2 . . . 2 1 3 . . 1 . 1 . . 3 5 5 7 . 1 4 . 8 . 5 . . 1 1 Saboteur 1 | . . . . . . . . . . . . . . . . . . . . . . . . . . . . . . . . . . . . 1 Grunt 163 | . 4 2 14 . . 8 12 33 . . . 3 2 14 1 3 3 . 6 . 14 3 9 . 8 . 2 10 . 7 . 2 . . 3 . Brawler 10 | . . . . . . . . 4 . . . . . . . . . . . . . . 2 . 2 . . 2 . . . . . . . . Duelist 7 | . . . . . . 1 . 4 . . . . . 1 . . . . . . . . 1 . . . . . . . . . . . . . Protector 1 | . . . . . . . . 1 . . . . . . . . . . . . . . . . . . . . . . . . . . . . Sentry 48 | . . . 8 . . . 9 3 . . . . . 1 1 . . 2 1 1 2 . . 1 3 . 1 1 . 1 2 5 4 . . 2 Hunter 10 | . . . . . . 1 2 . . . . . 2 1 . . 1 . 1 . . . 1 . . . . . . . . . . . . 1 Programmer 13 | . . . . . . . . 1 . . . . . 1 1 . . . . . . 2 1 . . . . . . . 1 1 . . 3 2 Behemoth 3 | . . . . . . . . . . . . . . . . 1 . . . . 1 . . . 1 . . . . . . . . . . . Cetus Guard 2 | . . . . . . . . . . . . . . . . . 2 . . . . . . . . . . . . . . . . . . . Packrat 1 | . . . . . . . . . . . . . . . . . . . . . . . . . . . 1 . . . . . . . . . Best Kill Streak 14 | 5 7 2 9 . . 3 14 10 . . . 5 6 5 1 2 3 3 8 1 4 6 6 5 7 2 3 5 . 5 4 8 3 . 3 4 Combat Bots Only 11 | . 4 2 6 . . 3 11 5 . . . 5 4 5 1 2 3 2 4 1 4 5 6 5 7 . 3 5 . 5 1 8 1 . 3 2 Max Kills in Single Turn 5 | 1 3 1 3 . . 2 5 1 . . . 2 1 2 1 1 2 1 3 1 2 4 3 3 2 1 1 2 . 2 1 3 1 . 1 1 Gunslinging 1 | . . . . . . . . . . . . . . . . . . . . . . . . . . . . . . 1 . . . . . . Exploded 4 | . 2 . 2 . . 2 4 . . . . 2 . 2 . . 1 . 1 . . 3 3 3 1 . . 1 . 2 . 3 . . . 1 Melee 1 | . . . . . . 1 1 1 . . . 1 1 1 1 1 . . 1 . 1 1 . . 1 . 1 . . . 1 1 1 . 1 1 Uniques/NPCs Destroyed 1 | . . . . . . . . . . . . . . . . . 1 . . . . . . . . . . . . . . . . . . . A7 (-6/Cetus) Combat | -11 -10 -10 -9 -9 -9 -8 -8 -7 -7 -7 -7 -6 -6 -6 -6 -6 -6 -6 -6 -5 -5 -5 -5 -4 -4 -4 -4 -4 -4 -3 -3 -3 -2 -1 -1 -1 -------- Run | Scr Mat Min Mat Min Exi Min Mat Fac Low Low Dat Pro Fac Gar Fac Ext Cet Arc Hub Fac Gar Fac Gar Fac Gar Fac Upp Upp War Pro Res Gar Res Acc Gar Acc Damage Taken 22159 | . 427 115 1013 . . 278 812 2038 . . . 102 144 1343 242 423 443 223 1744 116 1488 272 1087 372 3456 . 217 737 . 766 150 565 76 219 941 2350 Core 15953 | . 344 93 768 . . 226 621 1410 . . . 80 108 1064 152 290 307 156 1223 96 1015 167 795 252 2376 . 167 533 . 502 111 420 60 153 656 1808 Absorbed by Shields 343 | . . . . . . . . . . . . . . 74 . . 85 . . . . . 22 . 72 . . . . . . . . . . 90 Redirected to Core 12981 | . 272 72 620 . . 175 461 1167 . . . 53 97 815 113 236 278 156 977 73 902 167 588 201 1983 . 95 413 . 440 75 379 60 129 556 1428 Core Remaining (%) 67 | 100 . 46 . . . 53 60 . . . . 100 . . . . . . 21 . . . 100 . . . . . . 56 . 95 97 . . 15 Volleys Fired 860 | 18 38 6 97 . . 2 10 1 . . . 1 . 8 . 24 40 8 26 5 66 27 77 26 135 4 16 41 . 25 35 37 10 . 50 27 Largest 3 | 2 2 3 3 . . 1 2 2 . . . 2 . 3 . 2 3 2 2 2 3 3 3 3 3 1 2 3 . 2 3 3 1 . 3 3 Hottest 113 | 70 70 90 108 . . 30 85 51 . . . 58 . 88 . 58 108 70 70 70 105 105 105 113 113 40 70 113 . 78 105 105 50 . 105 105 Shots Fired 1580 | 36 76 18 251 . . 2 12 2 . . . 2 . 18 . 31 83 16 50 10 137 39 146 48 228 4 21 89 . 37 48 59 10 . 75 32 Gun 1279 | 36 72 18 237 . . . 10 2 . . . 1 . 16 . 15 70 16 50 10 119 26 126 35 162 . 10 74 . 21 38 45 6 . 53 11 Cannon . | . . . . . . . . . . . . . . . . . . . . . . . . . . . . . . . . . . . . . Launcher 90 | . 4 . 14 . . 2 2 . . . . 1 . 2 . . 8 . . . . 1 2 3 23 . . 13 . 11 . 1 . . 2 1 Special 211 | . . . . . . . . . . . . . . . . 16 5 . . . 18 12 18 10 43 4 11 2 . 5 10 13 4 . 20 20 Kinetic 1161 | 18 41 12 184 . . . . 2 . . . 1 . 16 . 15 70 16 50 10 119 26 126 35 162 . 10 74 . 21 38 45 6 . 53 11 Thermal 118 | 18 31 6 53 . . . 10 . . . . . . . . . . . . . . . . . . . . . . . . . . . . . Explosive 35 | . 4 . 14 . . 2 2 . . . . 1 . 2 . . . . . . . . 2 3 . . . . . 3 . 1 . . . 1 Electromagnetic 55 | . . . . . . . . . . . . . . . . . 8 . . . . 1 . . 23 . . 13 . 8 . . . . 2 . Robot Hit Streak 34 | 6 9 4 19 . . 1 3 3 . . . . . 5 . 7 8 8 13 6 16 12 18 13 34 24 27 19 . 19 26 12 4 . 9 15 Robot Miss Streak 6 | 4 5 2 6 . . 1 2 . . . . . . 2 . 2 2 1 4 1 2 4 3 3 3 . 2 3 . 1 3 2 2 . 2 1 Penetration Max 1 | . . . . . . . . . . . . . . . . . 1 . 1 . 1 . . 1 1 . . 1 . 1 1 . . . 1 1 Secondary Targets 18 | . . 1 1 . . . . . . . . . . . . . . . 2 . 4 . 1 . 3 . . 1 . 2 . 3 . . . . Max Gunslinging Chain 1 | . . 1 1 . . . . . . . . . . . . . . . 1 . 1 . 1 . 1 . . 1 . 1 . 1 . . . . Shots Hit Robots 1518 | 19 43 11 170 . . 21 102 128 . . . 7 14 69 18 28 57 12 48 9 100 32 98 37 184 7 20 57 . 32 51 47 11 . 43 43 Core Hits 722 | 9 24 4 91 . . 15 46 66 . . . 8 7 32 7 8 30 8 31 4 42 14 38 20 49 2 7 47 . 29 22 25 7 . 12 18 Critical Hits 168 | . 1 . . . . 1 7 5 . . . 1 . 4 . . 10 3 5 1 14 4 24 8 27 . 3 15 . 5 9 6 2 . 7 6 Critical Kills 51 | . . . . . . . 2 3 . . . . . 2 . . . 1 1 . 4 1 7 . 8 . 3 7 . 4 2 2 . . 2 2 Critical Parts Destroyed 90 | . 1 . . . . 1 4 2 . . . 1 . 2 . . 10 . 2 1 6 2 15 5 13 . . 5 . 1 6 3 2 . 5 3 Melee Attacks 620 | . . . . . . 20 103 139 1 . . 12 16 68 35 6 . . 18 10 12 29 . 5 14 3 5 4 1 1 39 15 7 12 13 32 Impact . | . . . . . . . . . . . . . . . . . . . . . . . . . . . . . . . . . . . . . Slashing 620 | . . . . . . 20 103 139 1 . . 12 16 68 35 6 . . 18 10 12 29 . 5 14 3 5 4 1 1 39 15 7 12 13 32 Piercing . | . . . . . . . . . . . . . . . . . . . . . . . . . . . . . . . . . . . . . Sneak Attacks 64 | . . . . . . 3 6 10 . . . . 1 1 2 3 . . 4 . . . . . . 1 4 . . . 11 4 4 . 1 9 Combat Hostiles 27 | . . . . . . 2 1 2 . . . . . 1 . . . . . . . . . . . . 3 . . . 4 4 4 . 1 5 Follow-up Attacks . | . . . . . . . . . . . . . . . . . . . . . . . . . . . . . . . . . . . . . Damage Inflicted 56589 | 282 892 145 2541 . . 1402 5868 6924 . . . 474 929 3790 1110 818 2060 379 2750 294 2723 947 2582 1284 4402 240 784 2714 . 1738 2698 1744 803 . 1029 2243 Guns 20681 | 282 545 145 1761 . . . 111 34 . . . . . 227 . 248 1271 281 1279 244 2383 496 2197 709 3541 . 138 1327 . 459 871 910 134 . 886 202 Cannons . | . . . . . . . . . . . . . . . . . . . . . . . . . . . . . . . . . . . . . Explosions 7527 | . 347 . 780 . . 169 332 . . . . 94 . 228 . . 789 . 413 . . 137 385 530 667 . . 897 . 1279 . 274 . . 20 186 Melee 28229 | . . . . . . 1233 5425 6890 . . . 380 929 3335 1110 570 . . 1058 50 340 314 . 45 194 240 646 490 . . 1827 560 669 . 123 1801 Ramming 152 | . . . . . . . . . . . . . . . . . . 98 . . . . . . . . . . . . . . . . . 54 Kinetic 19546 | 107 272 95 1235 . . . . 34 . . . . . 227 . 248 1271 281 1279 244 2383 496 2197 709 3541 . 138 1327 . 459 871 910 134 . 886 202 Thermal 1839 | 175 273 50 526 . . . 111 . . . . . . . . . . . . . . 39 . . 263 . . 320 . 82 . . . . . . Explosive 4108 | . 347 . 780 . . 169 332 . . . . 94 . 228 . . . . . . . . 385 530 . . . . . 783 . 274 . . . 186 Electromagnetic 2715 | . . . . . . . . . . . . . . . . . 789 . 413 . . 98 . . 404 . . 577 . 414 . . . . 20 . Impact . | . . . . . . . . . . . . . . . . . . . . . . . . . . . . . . . . . . . . . Slashing 28229 | . . . . . . 1233 5425 6890 . . . 380 929 3335 1110 570 . . 1058 50 340 314 . 45 194 240 646 490 . . 1827 560 669 . 123 1801 Piercing . | . . . . . . . . . . . . . . . . . . . . . . . . . . . . . . . . . . . . . Highest Corruption 12 | . . . . . . . . 1 1 1 1 1 1 1 2 2 2 2 7 . . 1 1 . 2 2 3 3 12 12 . 1 . 1 2 9 Average Corruption 2 | . . . . . . . . 1 1 1 1 1 1 1 1 2 2 2 2 . . 1 1 . 1 2 2 3 7 12 . 1 . 1 1 4 Corruption Purged . | . . . . . . . . . . . . . . . . . . . . . . . . . . . . . . . . . . . . . Effects 125 | . . . . . . . . 4 . . . 3 1 6 5 3 7 1 5 . . 1 4 . . 2 5 16 3 39 . . . . 8 12 Message Errors 30 | . . . . . . . . 3 . . . 2 1 1 1 2 . 1 1 . . . 1 . . 1 1 4 2 5 . . . . 1 3 Matter Fused 12 | . . . . . . . . . . . . . . . . . . . . . . . . . . . . 4 . 6 . . . . . 2 Heat Flow Errors 12 | . . . . . . . . . . . . . . . 1 . 2 . . . . . . . . . 1 2 . 4 . . . . 1 1 Energy Discharges 14 | . . . . . . . . . . . . 1 . 1 1 1 . . 1 . . . . . . 1 1 1 . 3 . . . . 2 1 Data Loss (minor) 10 | . . . . . . . . . . . . . . 3 . . 3 . 1 . . . . . . . . 1 . 2 . . . . . . Data Loss (major) 3 | . . . . . . . . . . . . . . . . . . . 1 . . . . . . . . . . 2 . . . . . . Misfires 2 | . . . . . . . . . . . . . . . . . . . . . . . . . . . . . . 2 . . . . . . Alerts 1 | . . . . . . . . . . . . . . . . . . . . . . . . . . . . . . 1 . . . . . . Misdirections 11 | . . . . . . . . . . . . . . . . . . . . . . . . . . . . . . 11 . . . . . . Targeting Errors 30 | . . . . . . . . 1 . . . . . 1 2 . 2 . 1 . . 1 3 . . . 2 4 1 3 . . . . 4 5 Overload Shots . | . . . . . . . . . . . . . . . . . . . . . . . . . . . . . . . . . . . . . Overflow Damage 3404 | . 18 . 11 . . 75 408 687 . . . 11 160 149 148 135 7 38 317 . 45 32 40 5 8 98 94 247 . 51 318 63 . . . 239 Projectiles . | . . . . . . . . . . . . . . . . . . . . . . . . . . . . . . . . . . . . . Explosions 243 | . 18 . 11 . . . 5 . . . . . . 26 . . 7 . . . . . 40 5 6 . . 73 . 51 . . . . . 1 Melee 3161 | . . . . . . 75 403 687 . . . 11 160 123 148 135 . 38 317 . 45 32 . . 2 98 94 174 . . 318 63 . . . 238 Knockbacks 1 | . . . . . . . . . . . . . . . . . . 1 . . . . . . . . . . . . . . . . . . Impact 1 | . . . . . . . . . . . . . . . . . . 1 . . . . . . . . . . . . . . . . . . Kinetic . | . . . . . . . . . . . . . . . . . . . . . . . . . . . . . . . . . . . . . Secondary . | . . . . . . . . . . . . . . . . . . . . . . . . . . . . . . . . . . . . . Self-Inflicted Damage 524 | . . . 46 . . 26 3 . . . . . . 34 . . 23 49 178 . . . . . 121 . . . . 17 . . . . . 27 Shots 16 | . . . 3 . . 1 1 . . . . . . 2 . . 1 . 2 . . . . . 4 . . . . 2 . . . . . . Rammed 3 | . . . . . . . . . . . . . . . . . . 1 . . . . . . . . . . . . . . . . . 2 Targets Rammed 3 | . . . . . . . . . . . . . . . . . . 1 . . . . . . . . . . . . . . . . . 2 Kicked . | . . . . . . . . . . . . . . . . . . . . . . . . . . . . . . . . . . . . . Crushed . | . . . . . . . . . . . . . . . . . . . . . . . . . . . . . . . . . . . . . Highest Temperature 375 | 74 264 151 312 . . . 6 . . . . . . 6 140 25 375 17 90 11 348 177 237 147 289 21 288 287 . 198 63 213 44 12 295 274 Average Temperature 77 | 30 112 60 76 . . . 3 . . . . . . 3 95 9 75 5 33 7 113 58 77 46 68 11 93 121 . 56 20 87 14 9 89 56 Received Heat Transfer 4706 | . 222 63 378 . . 81 288 630 . . . 21 . 510 54 105 97 15 384 18 489 45 207 54 492 . 21 159 . 96 30 18 18 36 27 148 Effects 18 | . . . 4 . . . . . . . . . . . . . 3 . . . 2 . . . 5 . 1 3 . . . . . . . . Energy Bleed 4 | . . . 1 . . . . . . . . . . . . . . . . . 1 . . . 1 . 1 . . . . . . . . . Interference 14 | . . . 3 . . . . . . . . . . . . . 3 . . . 1 . . . 4 . . 3 . . . . . . . . Siege Activations . | . . . . . . . . . . . . . . . . . . . . . . . . . . . . . . . . . . . . . Robots Corrupted 3 | . . . . . . . . . . . . . . . . . 3 . . . . . . . . . . . . . . . . . . . Combat Hostiles 3 | . . . . . . . . . . . . . . . . . 3 . . . . . . . . . . . . . . . . . . . Parts Fried 16 | . . . . . . . . . . . . . . . . . 9 . 1 . . 1 . . . . . 1 . 4 . . . . . . Impact Corruptions 1 | . . . . . . . . . . . . . . . . . . 1 . . . . . . . . . . . . . . . . . . Robots Melted . | . . . . . . . . . . . . . . . . . . . . . . . . . . . . . . . . . . . . . Combat Hostiles . | . . . . . . . . . . . . . . . . . . . . . . . . . . . . . . . . . . . . . Parts Melted 6 | 1 1 . . . . . . . . . . . . . . . . . . . . 1 . . 2 . . . . . . 1 . . . . Heat Transferred 3514 | 518 814 148 1092 . . . 222 . . . . . . . . . . . . . . 50 . . 200 . . 370 . 100 . . . . . . Parts Sabotaged 6 | . . . . . . . . . . . . . . . . . . . . . . . . . 4 . . . . . . . . . . 2 Parts Stolen . | . . . . . . . . . . . . . . . . . . . . . . . . . . . . . . . . . . . . . Parts Stripped . | . . . . . . . . . . . . . . . . . . . . . . . . . . . . . . . . . . . . . Power Chain Reactions 12 | . . . . . . . . . . . . . . . . . 1 . . . . 1 . . 8 . . 1 . 1 . . . . . . Missiles Intercepted . | . . . . . . . . . . . . . . . . . . . . . . . . . . . . . . . . . . . . . Alert | -11 -10 -10 -9 -9 -9 -8 -8 -7 -7 -7 -7 -6 -6 -6 -6 -6 -6 -6 -6 -5 -5 -5 -5 -4 -4 -4 -4 -4 -4 -3 -3 -3 -2 -1 -1 -1 ------- Run | Scr Mat Min Mat Min Exi Min Mat Fac Low Low Dat Pro Fac Gar Fac Ext Cet Arc Hub Fac Gar Fac Gar Fac Gar Fac Upp Upp War Pro Res Gar Res Acc Gar Acc Peak Influence 2048 | 40 361 205 851 208 . 360 1131 1357 . . . . 446 1335 914 355 547 341 2048 1211 1238 1544 1799 1753 1701 1100 . . . . 560 1046 633 298 1001 1650 Average Influence 777 | 19 198 147 499 65 . 219 589 937 . . . . 300 1004 784 187 241 291 1134 1144 969 968 1407 1334 1410 804 . . . . 344 738 523 284 562 1536 Maximum Alert Level 5 | . 1 1 3 1 . 1 4 4 . . . . 2 4 3 1 2 1 5 4 4 4 5 5 5 4 . . . . 2 3 2 1 3 5 Low Security (%) 13 | 100 45 91 12 97 . 49 9 . . . . . 44 . . 52 39 18 13 . . . . . . . . . . . 22 . . . . . Level 1 12 | . 54 8 12 2 . 50 12 4 . . . . 11 4 . 47 51 81 3 . . . . . . . . . . . 22 3 9 100 8 . Level 2 20 | . . . 69 . . . 38 13 . . . . 44 16 1 . 8 . 10 . 2 22 . . . 71 . . . . 54 41 90 . 59 . Level 3 22 | . . . 5 . . . 37 47 . . . . . 25 98 . . . 21 14 64 46 3 . 5 . . . . . . 54 . . 32 . Level 4 23 | . . . . . . . 1 34 . . . . . 52 . . . . 21 86 33 31 76 92 61 28 . . . . . . . . . . Level 5 . | . . . . . . . . . . . . . . . . . . . . . . . 2 7 . . . . . . . . . . . . High Security 4 | . . . . . . . . . . . . . . . . . . . 28 . . . 17 . 32 . . . . . . . . . . . Max Security 2 | . . . . . . . . . . . . . . . . . . . . . . . . . . . . . . . . . . . . 99 Squads Dispatched 111 | . 1 . 7 . . . 9 17 . . . . 3 . 5 1 . . 8 1 . 5 4 5 14 . . . . . 7 . . . . 24 Investigation 21 | . . . 5 . . . 4 6 . . . . 1 . 1 1 . . . . . 1 . 1 . . . . . . 1 . . . . . Extermination 4 | . . . . . . . . 1 . . . . . . 1 . . . . 1 . 1 . . . . . . . . . . . . . . Reinforcement 26 | . 1 . 2 . . . 2 2 . . . . 1 . 1 . . . 6 . . 2 . 2 . . . . . . 6 . . . . 1 Assault 47 | . . . . . . . 1 6 . . . . . . 2 . . . . . . . 4 . 14 . . . . . . . . . . 20 Garrison 13 | . . . . . . . 2 2 . . . . 1 . . . . . 2 . . 1 . 2 . . . . . . . . . . . 3 Intercept . | . . . . . . . . . . . . . . . . . . . . . . . . . . . . . . . . . . . . . Construction Impeded 4 | . . . . . . . . . . . . . . . . . . . 2 . . 1 . . . . . . . . . . . . . 1 Haulers Reinforced 6 | . . . . . . . . 1 . . . . 1 . . . . . 2 . . 1 . . . . . . . . 1 . . . . . Alert ID Control Effect 43 | . . . . . . . . . . . . . . . . . . . . . . . . . 21 . . 1 . . . 9 . . . 12 Stealth | -11 -10 -10 -9 -9 -9 -8 -8 -7 -7 -7 -7 -6 -6 -6 -6 -6 -6 -6 -6 -5 -5 -5 -5 -4 -4 -4 -4 -4 -4 -3 -3 -3 -2 -1 -1 -1 --------- Run | Scr Mat Min Mat Min Exi Min Mat Fac Low Low Dat Pro Fac Gar Fac Ext Cet Arc Hub Fac Gar Fac Gar Fac Gar Fac Upp Upp War Pro Res Gar Res Acc Gar Acc Distress Signals 30 | . 1 . 4 . . . 1 1 . . . . 1 . . 1 2 . 3 . . 2 . 1 . 1 . . . . 5 . . . . 7 Communications Jammed . | . . . . . . . . . . . . . . . . . . . . . . . . . . . . . . . . . . . . . Distress Signals . | . . . . . . . . . . . . . . . . . . . . . . . . . . . . . . . . . . . . . Times Spotted 850 | . 18 2 45 . . 13 45 66 . . . 8 10 32 9 19 23 6 63 4 36 23 34 22 121 1 8 21 . 20 28 27 6 8 23 109 Peak Tracking Total 36 | . 6 2 8 . . 3 8 12 . . . 4 5 7 5 7 5 2 20 6 6 7 7 5 32 1 3 6 . 5 6 8 2 7 7 36 Tactical Retreats 49 | . . . . . . . 3 4 . . . . . 3 . . . . 3 . 2 . 4 . 13 . . 3 . 1 1 1 . . 2 9 Traps | -11 -10 -10 -9 -9 -9 -8 -8 -7 -7 -7 -7 -6 -6 -6 -6 -6 -6 -6 -6 -5 -5 -5 -5 -4 -4 -4 -4 -4 -4 -3 -3 -3 -2 -1 -1 -1 ------- Run | Scr Mat Min Mat Min Exi Min Mat Fac Low Low Dat Pro Fac Gar Fac Ext Cet Arc Hub Fac Gar Fac Gar Fac Gar Fac Upp Upp War Pro Res Gar Res Acc Gar Acc Traps Triggered 40 | . . . 1 . . . . 2 . . . . . 4 . 1 . . 1 . 2 . 6 . 10 . . . . . 1 7 . . 5 . Indirectly 1 | . . . . . . . . . . . . . . . . . . . . . . . . . 1 . . . . . . . . . . . Trap Hack Attempts . | . . . . . . . . . . . . . . . . . . . . . . . . . . . . . . . . . . . . . Triggered . | . . . . . . . . . . . . . . . . . . . . . . . . . . . . . . . . . . . . . Disarmed . | . . . . . . . . . . . . . . . . . . . . . . . . . . . . . . . . . . . . . Reprogrammed 6 | . . . . . . . . . . . . . . . . . . . . . . . . . . . . . . . 6 . . . . . Reused . | . . . . . . . . . . . . . . . . . . . . . . . . . . . . . . . . . . . . . Traps Extracted . | . . . . . . . . . . . . . . . . . . . . . . . . . . . . . . . . . . . . . Installed . | . . . . . . . . . . . . . . . . . . . . . . . . . . . . . . . . . . . . . Triggered 4 | . . . . . . . . . . . . 2 . . . . . . . . . . . . 1 . 1 . . . . . . . . . Machines | -11 -10 -10 -9 -9 -9 -8 -8 -7 -7 -7 -7 -6 -6 -6 -6 -6 -6 -6 -6 -5 -5 -5 -5 -4 -4 -4 -4 -4 -4 -3 -3 -3 -2 -1 -1 -1 ---------- Run | Scr Mat Min Mat Min Exi Min Mat Fac Low Low Dat Pro Fac Gar Fac Ext Cet Arc Hub Fac Gar Fac Gar Fac Gar Fac Upp Upp War Pro Res Gar Res Acc Gar Acc Machines Disabled 64 | . . . 1 . . 1 1 . . . . . . 4 . 2 . 2 7 . 5 1 7 3 7 . . 3 . . . 7 . . 11 2 Max in Single Turn 3 | . . . 1 . . 1 1 . . . . . . 1 . 1 . 1 3 . 1 . 1 1 1 . . 2 . . . 2 . . 2 1 Garrison Access 4 | . . . . . . . 1 1 . . . . . . 1 . . . 1 . . . . . . . . . . . . . . . . . Garrison Relay 26 | . . . . . . . . . . . . . . 4 . . . . . . 5 . 4 . 5 . . . . . . 4 . . 4 . Phase Generator 3 | . . . . . . . . . . . . . . . . . . . . . . . . . 1 . . . . . . 1 . . 1 . Network Hub 2 | . . . . . . . . . . . . . . . . . . . 2 . . . . . . . . . . . . . . . . . Machines Sabotaged . | . . . . . . . . . . . . . . . . . . . . . . . . . . . . . . . . . . . . . Garrisons Compromised . | . . . . . . . . . . . . . . . . . . . . . . . . . . . . . . . . . . . . . Overloaded Fab Kills . | . . . . . . . . . . . . . . . . . . . . . . . . . . . . . . . . . . . . . Fab Network Shutdowns 2 | . . . . . . . . . . . . . . . . . . . . . . 1 . . . . . . . . 1 . . . . . Hacking | -11 -10 -10 -9 -9 -9 -8 -8 -7 -7 -7 -7 -6 -6 -6 -6 -6 -6 -6 -6 -5 -5 -5 -5 -4 -4 -4 -4 -4 -4 -3 -3 -3 -2 -1 -1 -1 --------- Run | Scr Mat Min Mat Min Exi Min Mat Fac Low Low Dat Pro Fac Gar Fac Ext Cet Arc Hub Fac Gar Fac Gar Fac Gar Fac Upp Upp War Pro Res Gar Res Acc Gar Acc Machines Accessed 101 | . 2 . 10 1 3 . 7 10 1 . 4 . 1 . 10 14 2 1 3 4 . 3 . 3 . 2 1 1 . . 13 . 4 1 . . Terminals 61 | . 2 . 7 1 . . 4 5 . . . . . . 6 14 2 . 2 2 . 1 . 2 . 2 1 1 . . 6 . 3 . . . Fabricators 4 | . . . . . . . . 1 . . . . . . 1 . . . . . . 1 . . . . . . . . 1 . . . . . Repair Stations 2 | . . . . . . . . . . . . . . . . . . . . . . . . . . . . . . . 2 . . . . . Recycling Units 12 | . . . 2 . . . 2 2 . . . . . . 2 . . . . 1 . . . . . . . . . . 2 . 1 . . . Scanalyzers 2 | . . . 1 . . . . . . . . . . . . . . . . . . . . . . . . . . . 1 . . . . . Garrison Access 11 | . . . . . . . 1 2 . . . . 1 . 1 . . . 1 1 . 1 . 1 . . . . . . 1 . . 1 . . Total Hacks 369 | . 11 . 33 2 3 . 28 27 1 . 23 . 2 . 26 50 6 1 9 17 . 13 . 16 . 19 1 4 . . 62 . 11 4 . . Successful 211 | . 8 . 22 2 3 . 16 14 1 . 23 . 1 . 13 32 4 1 2 7 . 8 . 10 . 11 1 4 . . 21 . 5 2 . . Failed 157 | . 3 . 11 . . . 12 13 . . . . 1 . 13 17 2 . 7 10 . 5 . 6 . 8 . . . . 41 . 6 2 . . Catastrophic 25 | . . . 1 . . . 1 3 . . . . 1 . 1 2 . . 2 3 . . . 2 . 1 . . . . 5 . 2 1 . . Database Lockouts 2 | . . . . . . . . . . . . . . . . 2 . . . . . . . . . . . . . . . . . . . . Manual 182 | . 7 . 17 2 1 . 15 20 . . . . . . 11 35 6 . 7 12 . 3 . 9 . 16 . . . . 16 . 3 2 . . Terminals 237 | . 11 . 22 2 . . 19 18 . . . . . . 16 50 6 . 7 12 . 5 . 12 . 19 1 4 . . 25 . 8 . . . Fabricators 14 | . . . . . . . . 1 . . . . . . 3 . . . . . . 4 . . . . . . . . 6 . . . . . Repair Stations 7 | . . . . . . . . . . . . . . . . . . . . . . . . . . . . . . . 7 . . . . . Recycling Units 39 | . . . 7 . . . 5 3 . . . . . . 5 . . . . 3 . . . . . . . . . . 13 . 3 . . . Scanalyzers 10 | . . . 4 . . . . . . . . . . . . . . . . . . . . . . . . . . . 6 . . . . . Garrison Access 34 | . . . . . . . 4 5 . . . . 2 . 2 . . . 2 2 . 4 . 4 . . . . . . 5 . . 4 . . Terminal Hacks 104 | . 6 . 6 1 3 . 9 4 1 . 23 . . . 5 14 3 1 1 2 . 2 . 2 . 7 1 4 . . 6 . 3 . . . Record 15 | . . . . . 2 . . . . . 5 . . . . . . 1 . . . . . 1 . 1 1 4 . . . . . . . . Part Schematic 10 | . . . . . . . . . . . 8 . . . . 2 . . . . . . . . . . . . . . . . . . . . Robot Schematic 8 | . . . . . . . . . . . 7 . . . 1 . . . . . . . . . . . . . . . . . . . . . Robot Analysis 3 | . 1 . 1 . . . . . . . . . . . . . . . . . . 1 . . . . . . . . . . . . . . Prototype ID Bank 13 | . 2 . 1 . . . . . . . 3 . . . 2 3 . . . . . . . . . 1 . . . . 1 . . . . . Open Door 2 | . . . . . . . . . 1 . . . . . . . 1 . . . . . . . . . . . . . . . . . . . Level Access Points 1 | . . . . . . . . . . . . . . . . . . . . . . . . . . . . . . . . . 1 . . . Branch Access Points 10 | . 1 . . . . . . 1 . . . . . . 1 1 . . 1 1 . 1 . 1 . 1 . . . . 1 . . . . . Terminal Index 7 | . 1 . . . . . 2 1 . . . . . . . 1 . . . . . . . . . 1 . . . . 1 . . . . . Repair Station Index 1 | . . . . . . . . . . . . . . . . . . . . . . . . . . . . . . . 1 . . . . . Garrison Index 2 | . . . . . . . 1 1 . . . . . . . . . . . . . . . . . . . . . . . . . . . . Alert Level 5 | . 1 . 2 . . . 1 1 . . . . . . . . . . . . . . . . . . . . . . . . . . . . Unreport Threat 18 | . . . 2 1 . . 3 . . . . . . . 1 3 2 . . 1 . . . . . 3 . . . . . . 2 . . . Locate Traps 5 | . . . . . . . . . . . . . . . . 4 . . . . . . . . . . . . . . 1 . . . . . Reprogram Traps 1 | . . . . . . . . . . . . . . . . . . . . . . . . . . . . . . . 1 . . . . . Recall Reinforcements 1 | . . . . . . . 1 . . . . . . . . . . . . . . . . . . . . . . . . . . . . . Recall Assault 1 | . . . . . . . 1 . . . . . . . . . . . . . . . . . . . . . . . . . . . . . EX-Prototype ID Bank 1 | . . . . . 1 . . . . . . . . . . . . . . . . . . . . . . . . . . . . . . . Fabricator Hacks 6 | . . . . . . . . . . . . . . . 2 . . . . . . 2 . . . . . . . . 2 . . . . . Load Schematic 3 | . . . . . . . . . . . . . . . 1 . . . . . . 1 . . . . . . . . 1 . . . . . Build 3 | . . . . . . . . . . . . . . . 1 . . . . . . 1 . . . . . . . . 1 . . . . . Repair Station Hacks 2 | . . . . . . . . . . . . . . . . . . . . . . . . . . . . . . . 2 . . . . . Scan Component 1 | . . . . . . . . . . . . . . . . . . . . . . . . . . . . . . . 1 . . . . . Repair 1 | . . . . . . . . . . . . . . . . . . . . . . . . . . . . . . . 1 . . . . . Recycling Unit Hacks 10 | . . . 2 . . . 2 1 . . . . . . 1 . . . . 1 . . . . . . . . . . 3 . . . . . Report Inventory 9 | . . . 2 . . . 2 1 . . . . . . 1 . . . . 1 . . . . . . . . . . 2 . . . . . Retrieve Components 1 | . . . . . . . . . . . . . . . . . . . . . . . . . . . . . . . 1 . . . . . Scanalyzer 7 | . . . 4 . . . . . . . . . . . . . . . . . . . . . . . . . . . 3 . . . . . Insert Component 4 | . . . 2 . . . . . . . . . . . . . . . . . . . . . . . . . . . 2 . . . . . Analyze 3 | . . . 2 . . . . . . . . . . . . . . . . . . . . . . . . . . . 1 . . . . . Garrison Access Hacks 17 | . . . . . . . . 2 . . . . 1 . 2 . . . 1 2 . 2 . 3 . . . . . . 2 . . 2 . . Unlock Access 7 | . . . . . . . . 1 . . . . 1 . . . . . . 1 . 1 . 1 . . . . . . 1 . . 1 . . Seal Access 2 | . . . . . . . . . . . . . . . 1 . . . 1 . . . . . . . . . . . . . . . . . Coupler Status 8 | . . . . . . . . 1 . . . . . . 1 . . . . 1 . 1 . 2 . . . . . . 1 . . 1 . . Unauthorized Hacks 179 | . 5 . 24 2 . . 13 17 . . . . . . 8 42 2 . 7 10 . 5 . 10 . 10 . . . . 17 . 5 2 . . Terminals 54 | . 2 . 7 1 . . 3 4 . . . . . . 3 18 1 . . 2 . 1 . 4 . 4 . . . . 2 . 2 . . . Track 5 | . . . 1 1 . . . . . . . . . . . 2 . . . . . . . . . 1 . . . . . . . . . . Assimilate 3 | . . . . . . . . . . . . . . . 1 . . . . . . . . 1 . . . . . . . . 1 . . . Botnet 34 | . 1 . 3 . . . 2 4 . . . . . . 2 12 1 . . 1 . 1 . 2 . 2 . . . . 2 . 1 . . . Disrupt 5 | . . . 2 . . . . . . . . . . . . 3 . . . . . . . . . . . . . . . . . . . . Operators 7 | . 1 . 1 . . . 1 . . . . . . . . 1 . . . 1 . . . 1 . 1 . . . . . . . . . . Fabricators 1 | . . . . . . . . 1 . . . . . . . . . . . . . . . . . . . . . . . . . . . . Download 1 | . . . . . . . . 1 . . . . . . . . . . . . . . . . . . . . . . . . . . . . Repair Stations . | . . . . . . . . . . . . . . . . . . . . . . . . . . . . . . . . . . . . . Recycling Units 8 | . . . 3 . . . 2 2 . . . . . . . . . . . . . . . . . . . . . . 1 . . . . . Mask 2 | . . . 1 . . . . . . . . . . . . . . . . . . . . . . . . . . . 1 . . . . . Tunnel 6 | . . . 2 . . . 2 2 . . . . . . . . . . . . . . . . . . . . . . . . . . . . Scanalyzers . | . . . . . . . . . . . . . . . . . . . . . . . . . . . . . . . . . . . . . Garrison Access 2 | . . . . . . . . . . . . . . . . . . . . . . 1 . 1 . . . . . . . . . . . . Restock 1 | . . . . . . . . . . . . . . . . . . . . . . . . 1 . . . . . . . . . . . . Reprogram 1 | . . . . . . . . . . . . . . . . . . . . . . 1 . . . . . . . . . . . . . . Data Cores Recovered 3 | . . . . . . . . . . . . . . . . . . . . 1 . . . . . . . . . . 2 . . . . . Used 2 | . . . . . . . . . . . . . . . . . . . . 1 . . . . . . . . . . 1 . . . . . Hacking Detections 74 | . 2 . 8 1 . . 5 7 . . . . 1 . 8 11 1 . 3 3 . 2 . 2 . 2 . 1 . . 12 . 4 1 . . Full Trace Events 12 | . . . 3 . . . 2 3 . . . . 1 . 1 . . . . . . . . 1 . . . . . . 1 . . . . . Feedback Events 2 | . . . . . . . . 1 . . . . 1 . . . . . . . . . . . . . . . . . . . . . . . Corruption 2 | . . . . . . . . 1 . . . . 1 . . . . . . . . . . . . . . . . . . . . . . . Feedback Blocked . | . . . . . . . . . . . . . . . . . . . . . . . . . . . . . . . . . . . . . Robot Schematics Acquired 9 | . . . . . . . . 1 . . 7 . . . 1 . . . . . . . . . . . . . . . . . . . . . Robots Built . | . . . . . . . . . . . . . . . . . . . . . . . . . . . . . . . . . . . . . Matter . | . . . . . . . . . . . . . . . . . . . . . . . . . . . . . . . . . . . . . Time . | . . . . . . . . . . . . . . . . . . . . . . . . . . . . . . . . . . . . . Total Robot Build Rating . | . . . . . . . . . . . . . . . . . . . . . . . . . . . . . . . . . . . . . Part Schematics Acquired 13 | . . . 2 . . . . . . . 8 . . . . 2 . . . . . . . . . . . . . . 1 . . . . . Parts Built 3 | . . . . . . . . . . . . . . . 1 . . . . . . 1 . . . . . . . . 1 . . . . . Matter 855 | . . . . . . . . . . . . . . . 285 . . . . . . 285 . . . . . . . . 285 . . . . . Time 202 | . . . . . . . . . . . . . . . 76 . . . . . . 76 . . . . . . . . 50 . . . . . Total Part Build Rating 15 | . . . . . . . . . . . . . . . 5 . . . . . . 5 . . . . . . . . 5 . . . . . Parts Repaired 1 | . . . . . . . . . . . . . . . . . . . . . . . . . . . . . . . 1 . . . . . Time 41 | . . . . . . . . . . . . . . . . . . . . . . . . . . . . . . . 41 . . . . . Parts Recycled . | . . . . . . . . . . . . . . . . . . . . . . . . . . . . . . . . . . . . . Recycled Matter . | . . . . . . . . . . . . . . . . . . . . . . . . . . . . . . . . . . . . . Retrieved Matter . | . . . . . . . . . . . . . . . . . . . . . . . . . . . . . . . . . . . . . Retrieved Components 10 | . . . . . . . . . . . . . . . . . . . . . . . . . . . . . . . 10 . . . . . Parts Scanalyzed 4 | . . . 2 . . . . . . . . . . . . . . . . . . . . . . . . . . . 2 . . . . . Part Schematics Acquired 3 | . . . 2 . . . . . . . . . . . . . . . . . . . . . . . . . . . 1 . . . . . Parts Damaged . | . . . . . . . . . . . . . . . . . . . . . . . . . . . . . . . . . . . . . Bothacking | -11 -10 -10 -9 -9 -9 -8 -8 -7 -7 -7 -7 -6 -6 -6 -6 -6 -6 -6 -6 -5 -5 -5 -5 -4 -4 -4 -4 -4 -4 -3 -3 -3 -2 -1 -1 -1 ------------ Run | Scr Mat Min Mat Min Exi Min Mat Fac Low Low Dat Pro Fac Gar Fac Ext Cet Arc Hub Fac Gar Fac Gar Fac Gar Fac Upp Upp War Pro Res Gar Res Acc Gar Acc Used RIF Installer 6 | . . . . . . . . . . . . . . 1 . . . . . . 1 . 1 . 1 . . . . . . 1 . . 1 . Coupler Efficiency 1 | . . . . . . . . . . . . . . . . . . . . . 1 . . . . . . . . . . . . . . . Robot Detection 1 | . . . . . . . . . . . . . . . . . . . . . . . 1 . . . . . . . . . . . . . Alert ID Control 1 | . . . . . . . . . . . . . . . . . . . . . . . . . 1 . . . . . . . . . . . Program Shield 1 | . . . . . . . . . . . . . . . . . . . . . . . . . . . . . . . . . . . 1 . Autooverride 1 | . . . . . . . . . . . . . . . . . . . . . . . . . . . . . . . . 1 . . . . Robots Hacked 154 | . . . . . . . . . . . . . . . . 10 4 . . . 15 9 13 9 17 4 8 2 . 5 9 12 4 . 18 15 Non-combat 14 | . . . . . . . . . . . . . . . . 1 . . . . . 3 . . . 3 1 . . . 6 . . . . . Combat 140 | . . . . . . . . . . . . . . . . 9 4 . . . 15 6 13 9 17 1 7 2 . 5 3 12 4 . 18 15 Autooverrided 5 | . . . . . . . . . . . . . . . . . . . . . . . . . . . . . . . . 1 . . 3 1 Robot Hacks Applied 156 | . . . . . . . . . . . . . . . . 10 4 . . . 15 10 13 9 20 4 9 2 . 5 9 11 4 . 17 14 parse_system 7 | . . . . . . . . . . . . . . . . 1 3 . . . . . . . . . 1 . . . 1 . . . 1 . generate_echo 2 | . . . . . . . . . . . . . . . . . . . . . . 1 . . . 1 . . . . . . . . . . drop_inventory 11 | . . . . . . . . . . . . . . . . . . . . . . 3 . . . 2 . . . . 6 . . . . . scatter_targeting 1 | . . . . . . . . . . . . . . . . 1 . . . . . . . . . . . . . . . . . . . . disrupt_area 1 | . . . . . . . . . . . . . . . . . . . . . . . . . . . . . . 1 . . . . . . spike_heat 3 | . . . . . . . . . . . . . . . . 1 . . . . 1 . . . . . . . . . . 1 . . . . overload_power 13 | . . . . . . . . . . . . . . . . . . . . . 1 . 2 . 1 . 6 . . 2 . 1 . . . . amplify_resonance 9 | . . . . . . . . . . . . . . . . 2 . . . . . 1 2 . 1 . . . . . . . . . 2 1 reboot_system 15 | . . . . . . . . . . . . . . . . . . . . . . . 1 3 1 . 1 1 . . 2 1 4 . . 1 go_dormant 1 | . . . . . . . . . . . . . . . . . . . . . . . 1 . . . . . . . . . . . . . overwrite_iff 7 | . . . . . . . . . . . . . . . . . . . . . . . . . 4 . . . . . . . . . . 3 streamctrl_high 1 | . . . . . . . . . . . . . . . . . . . . . . . . . 1 . . . . . . . . . . . formatsys_high 85 | . . . . . . . . . . . . . . . . 5 1 . . . 13 5 7 6 12 1 1 1 . 2 . 8 . . 14 9 Relay Couplers Released 50 | . . . . . . . 1 1 . . . . . 7 . . . . . . 8 . 8 . 9 . . . . . 2 7 . . 7 . Machine Destruction 48 | . . . . . . . 1 1 . . . . . 7 . . . . . . 8 . 8 . 9 . . . . . . 7 . . 7 . Programmers 2 | . . . . . . . . . . . . . . . . . . . . . . . . . . . . . . . 2 . . . . . Attached 35 | . . . . . . . . . . . . . . 3 . 1 . . . . 8 . 5 . 7 . . . . . . 6 . . 5 . Robots Rewired 16 | . . . . . . . . . . . . . . . . 3 1 . . . . . . . 11 . . . . 1 . . . . . . Allies Hacked 3 | . . . . . . . . . . . . . . . . . . . . . . . . . 2 . . . . . . . . . 1 . Hacks Repelled . | . . . . . . . . . . . . . . . . . . . . . . . . . . . . . . . . . . . . . Allies | -11 -10 -10 -9 -9 -9 -8 -8 -7 -7 -7 -7 -6 -6 -6 -6 -6 -6 -6 -6 -5 -5 -5 -5 -4 -4 -4 -4 -4 -4 -3 -3 -3 -2 -1 -1 -1 -------- Run | Scr Mat Min Mat Min Exi Min Mat Fac Low Low Dat Pro Fac Gar Fac Ext Cet Arc Hub Fac Gar Fac Gar Fac Gar Fac Upp Upp War Pro Res Gar Res Acc Gar Acc Total Allies 127 | . . . . . . . . . . . . 1 . . . 14 7 . . . 13 5 7 6 25 1 1 1 . 3 3 9 1 . 17 13 Largest Group 12 | . . . . . . . . . . . . 1 1 1 . 11 12 11 10 . 6 5 3 7 12 1 1 1 . 1 3 5 3 1 7 9 Highest-Rated Group 838 | . . . . . . . . . . . . 94 94 94 . 477 838 714 692 . 159 217 147 346 592 49 49 49 . 64 138 291 172 44 340 542 Highest-Rated Ally 156 | . . . . . . . . . . . . 94 94 94 . 156 156 94 94 . 49 49 49 56 56 49 49 49 . 64 46 64 64 44 64 69 Total Orders 54 | . . . . . . . . . . . . . . . . . . . 1 . . . . 1 12 1 5 8 . 2 . . 4 8 2 10 STAY 1 | . . . . . . . . . . . . . . . . . . . . . . . . . . . . . . . . . 1 . . . GOTO 26 | . . . . . . . . . . . . . . . . . . . 1 . . . . 1 12 1 3 4 . 2 . . 1 . 1 . FOLLOW 9 | . . . . . . . . . . . . . . . . . . . . . . . . . . . 2 4 . . . . 2 . 1 . EXPLORE 18 | . . . . . . . . . . . . . . . . . . . . . . . . . . . . . . . . . . 8 . 10 Ally Attacks 689 | . . . . . . . . . . . . 6 8 27 . 44 77 9 114 . 21 41 19 42 103 . 1 2 . 7 11 45 . . 19 93 Total Damage 26889 | . . . . . . . . . . . . 192 283 782 . 1502 2655 341 4579 . 292 1160 529 1393 7209 . 42 49 . 201 152 1659 . . 831 3038 Kills 150 | . . . . . . . . . . . . 3 3 6 . 7 17 2 33 . 2 11 6 10 27 . . 1 . . 1 9 . . . 12 Allies Corrupted 4 | . . . . . . . . . . . . . . . . . . . . . . . . . 1 . . . 1 . . . . . 2 . Allies Melted . | . . . . . . . . . . . . . . . . . . . . . . . . . . . . . . . . . . . . . Intel | -11 -10 -10 -9 -9 -9 -8 -8 -7 -7 -7 -7 -6 -6 -6 -6 -6 -6 -6 -6 -5 -5 -5 -5 -4 -4 -4 -4 -4 -4 -3 -3 -3 -2 -1 -1 -1 ------- Run | Scr Mat Min Mat Min Exi Min Mat Fac Low Low Dat Pro Fac Gar Fac Ext Cet Arc Hub Fac Gar Fac Gar Fac Gar Fac Upp Upp War Pro Res Gar Res Acc Gar Acc Robot Analysis Total 3 | . 1 . 1 . . . . . . . . . . . . . . . . . . 1 . . . . . . . . . . . . . . Derelict Logs Recovered 10 | . . 1 . . . . . . 2 1 . 3 . . . . . . . . . . . . . . 1 2 . . . . . . . . Drone Launches 22 | . . . . . . . . . . . . . . . . . . . . . . . . . . 2 . . . . . . 6 2 . 12 Drone Recoveries . | . . . . . . . . . . . . . . . . . . . . . . . . . . . . . . . . . . . . . Exploration | -11 -10 -10 -9 -9 -9 -8 -8 -7 -7 -7 -7 -6 -6 -6 -6 -6 -6 -6 -6 -5 -5 -5 -5 -4 -4 -4 -4 -4 -4 -3 -3 -3 -2 -1 -1 -1 ------------- Run | Scr Mat Min Mat Min Exi Min Mat Fac Low Low Dat Pro Fac Gar Fac Ext Cet Arc Hub Fac Gar Fac Gar Fac Gar Fac Upp Upp War Pro Res Gar Res Acc Gar Acc Turns Passed 16623 | 134 277 289 852 236 225 371 815 1242 132 78 35 267 138 902 407 488 483 87 314 250 1090 580 625 433 1193 205 267 507 101 624 1102 579 184 204 516 391 Spaces Moved 18747 | 59 191 400 610 202 258 487 919 1066 278 161 76 385 158 1017 523 572 369 86 309 309 899 547 726 457 976 288 457 767 235 881 1664 719 335 201 655 505 Core 1 | 1 . . . . . . . . . . . . . . . . . . . . . . . . . . . . . . . . . . . . Treads . | . . . . . . . . . . . . . . . . . . . . . . . . . . . . . . . . . . . . . Legs 1 | 1 . . . . . . . . . . . . . . . . . . . . . . . . . . . . . . . . . . . . Wheels 123 | 57 66 . . . . . . . . . . . . . . . . . . . . . . . . . . . . . . . . . . . Hover 18173 | . 125 400 610 202 258 487 919 1066 278 161 76 385 158 1017 523 572 369 86 309 309 529 468 726 457 976 288 457 767 235 881 1664 719 335 201 655 505 Flight 449 | . . . . . . . . . . . . . . . . . . . . . 370 79 . . . . . . . . . . . . . . Fastest Speed 38 | 90 65 65 56 116 56 56 51 46 46 46 46 46 46 46 46 46 45 45 45 51 51 42 42 42 42 42 42 42 42 42 38 38 38 38 38 38 Average Speed 51 | 90 73 65 78 116 83 56 51 68 46 46 46 46 46 46 50 46 64 45 50 62 82 56 42 42 42 42 42 42 42 42 40 38 38 38 38 38 Slowest Speed 120 | 120 90 65 116 116 116 56 56 111 46 46 46 46 46 46 106 46 106 45 111 111 120 114 42 42 46 42 42 42 42 42 42 38 38 41 38 42 Overloaded Moves . | . . . . . . . . . . . . . . . . . . . . . . . . . . . . . . . . . . . . . Propulsion Burnouts . | . . . . . . . . . . . . . . . . . . . . . . . . . . . . . . . . . . . . . Robots Hopped . | . . . . . . . . . . . . . . . . . . . . . . . . . . . . . . . . . . . . . Cave-ins Triggered . | . . . . . . . . . . . . . . . . . . . . . . . . . . . . . . . . . . . . . Exploration Rate (%) 50 | 3 50 97 63 29 60 61 66 21 48 35 68 62 4 83 22 74 87 73 46 6 86 14 87 14 84 11 70 84 21 93 51 81 14 11 72 23 Regions Visited 36 Branch Regions 16 Pre-discovered Areas 10 | . . 1 2 . . . 2 2 . . 1 1 . . . . . . . . . . . . . . . 1 . . . . . . . . Known Exits Taken 29 | . 1 1 1 1 1 1 1 1 1 1 1 1 1 . 1 1 1 1 1 1 . 1 . 1 . 1 1 1 1 1 1 . 1 1 . . Unknown Exits Taken 1 | 1 . . . . . . . . . . . . . . . . . . . . . . . . . . . . . . . . . . . . Scrap Searched 15 | . . 2 . 1 . 1 . . . . . 4 . . . . . . . . . . . . . . 2 4 . 1 . . . . . . Spaces Dug 136 | . . . . . . . 1 12 1 . . 5 2 . 16 . . . 5 9 . 23 . 4 1 . . . 1 1 27 . 1 12 9 6 Terrain Destroyed 1166 | . 25 . 67 . . 17 16 12 1 . . 8 2 4 16 . 19 8 358 9 9 33 28 30 42 . 3 60 1 42 28 77 1 12 225 13 Melee 136 | . . . . . . . 1 12 1 . . 5 2 . 16 . . . 5 9 . 23 . 4 1 . . . 1 1 27 . 1 12 9 6 Projectile 133 | . . . . . . . 1 . . . . . . 1 . . 16 8 14 . 9 5 5 12 11 . 3 36 . 8 1 2 . . 1 . AOE 897 | . 25 . 67 . . 17 14 . . . . 3 . 3 . . 3 . 339 . . 5 23 14 30 . . 24 . 33 . 75 . . 215 7 Actions | -11 -10 -10 -9 -9 -9 -8 -8 -7 -7 -7 -7 -6 -6 -6 -6 -6 -6 -6 -6 -5 -5 -5 -5 -4 -4 -4 -4 -4 -4 -3 -3 -3 -2 -1 -1 -1 --------- Run | Scr Mat Min Mat Min Exi Min Mat Fac Low Low Dat Pro Fac Gar Fac Ext Cet Arc Hub Fac Gar Fac Gar Fac Gar Fac Upp Upp War Pro Res Gar Res Acc Gar Acc Total 23774 | 101 250 415 797 203 268 563 1151 1430 280 164 75 458 206 1369 630 764 540 117 398 346 1118 761 923 655 1551 366 512 865 235 1098 2008 958 376 316 852 655 Wait 1942 | 14 3 9 26 . . 39 40 59 . 4 . 47 26 130 47 115 79 23 18 6 45 80 20 117 253 69 13 15 . 134 180 115 3 98 77 38 Move 18705 | 58 190 399 609 201 257 486 918 1065 277 160 75 384 157 1014 522 571 368 85 308 308 898 546 724 456 974 287 456 766 234 880 1662 717 334 201 654 504 Hop . | . . . . . . . . . . . . . . . . . . . . . . . . . . . . . . . . . . . . . Pick Up 44 | 2 2 . 1 . . 1 5 5 . . . . . 4 3 2 4 . . 1 1 3 . 3 1 . . 2 . 1 2 . . . . 1 Fast Attach 105 | 6 2 1 6 1 5 . 8 13 1 . . 2 . 6 . . 5 . . 2 3 5 4 . 13 . . . . . 9 3 3 2 3 2 Attach 9 | . . . . . . . 1 . . . . . . 1 . . . . . . . . . 1 . . . . . 1 1 1 . . 1 2 Detach 19 | 1 1 . . . 2 . 1 1 . . . . . 2 . . . . . 1 . . . . 3 . . . . . 1 2 1 . 3 . Swap 220 | . 5 . 16 . . 2 15 4 . . . 2 . 3 5 8 7 . 1 1 22 16 13 9 11 2 4 5 . 4 14 18 5 . 19 9 Drop 130 | 2 3 . 14 1 4 1 18 9 1 . . 1 . 9 6 1 8 . . 2 7 12 5 2 2 . 1 4 . 1 12 . 2 2 . . Fire 860 | 18 38 6 97 . . 2 10 1 . . . 1 . 8 . 24 40 8 26 5 66 27 77 26 135 4 16 41 . 25 35 37 10 . 50 27 Melee 620 | . . . . . . 20 103 139 1 . . 12 16 68 35 6 . . 18 10 12 29 . 5 14 3 5 4 1 1 39 15 7 12 13 32 Ram 3 | . . . . . . . . . . . . . . . . . . 1 . . . . . . . . . . . . . . . . . 2 Kick . | . . . . . . . . . . . . . . . . . . . . . . . . . . . . . . . . . . . . . Crush . | . . . . . . . . . . . . . . . . . . . . . . . . . . . . . . . . . . . . . Escape Stasis 177 | . . . . . . . . 13 . . . . . 71 . 13 . . . . 5 . 17 . 23 . . . . . 4 18 . . 6 7 Rewire 106 | . . . . . . . . . . . . . . . . 1 . . . . . 1 . 4 62 . . . . 19 . 3 . . 10 6 Trap . | . . . . . . . . . . . . . . . . . . . . . . . . . . . . . . . . . . . . . Miscellaneous 834 | . 6 . 28 . . 12 32 121 . . . 9 7 53 12 23 29 . 27 10 59 42 63 32 60 1 17 28 . 32 49 29 11 1 16 25 Route ------- -11/Scrapyard -10/Materials (discovered 2 exits: *Mat / *Min) -10/Mines (discovered 2 exits: *Mat x2) -9/Materials (discovered 2 exits: *Mat / *Min) -9/Mines (discovered 2 exits: *Mat / *Exi) -9/Exiles -8/Mines -8/Materials (discovered 5 exits: *Fac x3 / *Sto x2) -7/Factory (discovered 2 exits: *Low x2) -7/Lower Caves -7/Lower Caves -7/Data Miner -6/Proximity Caves -6/Factory (discovered 2 exits: Ext / Gar) -6/Garrison (discovered 3 exits: *Fac x3) -6/Factory (discovered 6 exits: *Fac x2 / *Low x2 / *Ext x2) -6/Extension (discovered 3 exits: *Fac x2 / *Cet) -6/Cetus (discovered 3 exits: *Fac x2 / *Arc) -6/Archives (discovered 3 exits: *Fac / *Hub x2) -6/Hub_04(d) (discovered 3 exits: *Fac x3) -5/Factory (discovered 3 exits: *Upp x2 / Gar) -5/Garrison (discovered 3 exits: *Fac x3) -5/Factory (discovered 3 exits: Upp x2 / Gar) -5/Garrison (discovered 3 exits: *Fac x3) -4/Factory (discovered 4 exits: *Upp x2 / Arm / Gar) -4/Garrison (discovered 3 exits: *Fac x3) -4/Factory (discovered 3 exits: *Upp x2 / Arm) -4/Upper Caves -4/Upper Caves -4/Warlord -3/Proximity Caves -3/Research (discovered 5 exits: *Res x2 / *Qua x2 / Gar) -3/Garrison (discovered 3 exits: *Res x3) -2/Research (discovered 3 exits: *Acc x3) -1/Access -1/Garrison (discovered 2 exits: *Acc x2) -1/Access (discovered 2 exits: *Sur / [Com]) To Epsilon Eridani History --------- Turn | Location | Event 1 | -11/Scrapyard | Discovered new exit (range 1) 3 | -11/Scrapyard | Upgraded with Propulsion slot (x1) 3 | -11/Scrapyard | Upgraded with Utility slot (x1) 3 | -11/Scrapyard | Upgraded with Weapon slot (x1) 135 | -11/Scrapyard | Entered Materials 169 | -10/Materials | Identified exit to Mines 251 | -10/Materials | Discovered new exit (range 16) 305 | -10/Materials | Build established: Mutant 412 | -10/Materials | Entered Mines 414 | -10/Mines | Reached level 2 538 | -10/Mines | Discovered new exit (range 16) 539 | -10/Mines | Learned location of Storage (-8) 550 | -10/Mines | Identified exit to Materials 606 | -10/Mines | Upgraded with Weapon slot (x1) 633 | -10/Mines | Discovered exit to Materials (range 14) 672 | -10/Mines | Core integrity fell below 50% 701 | -10/Mines | Entered Materials 702 | -9/Materials | Core integrity fell below 50% 703 | -9/Materials | Reached level 3 833 | -9/Materials | Discovered new exit (range 14) 873 | -9/Materials | Identified exit to Materials 900 | -9/Materials | Reached level 4 932 | -9/Materials | Core integrity fell below 20% 977 | -9/Materials | Discovered new exit (range 15) 1006 | -9/Materials | Identified exit to Mines 1056 | -9/Materials | Reached level 5 1165 | -9/Materials | Upgraded with Utility slot (x1) 1365 | -9/Materials | Reached level 6 1553 | -9/Materials | Entered Mines 1558 | -9/Mines | Met a Derelict bent on vengeance 1593 | -9/Mines | Assembled infested the area 1660 | -9/Mines | Discovered new exit (range 5) 1672 | -9/Mines | Met 8R-AWN 1692 | -9/Mines | Build established: Scavenger-Skirmisher 1707 | -9/Mines | Discovered exit to Materials (range 15) 1787 | -9/Mines | Identified exit to Exiles 1789 | -9/Mines | Entered Exiles 1791 | -9/Exiles | Reached level 7 1816 | -9/Exiles | Welcomed by 8R-AWN 1835 | -9/Exiles | Met EX-HEX 1872 | -9/Exiles | Met EX-BIN 1889 | -9/Exiles | Aligned with FarCom system 1890 | -9/Exiles | Given EX-Vault access code 1918 | -9/Exiles | Opened EX-Vault 1924 | -9/Exiles | Upgraded with Utility slot (x1) 1924 | -9/Exiles | Found Prototype Device 1924 | -9/Exiles | Identified Cloak of Protection 1928 | -9/Exiles | Found Prototype Slashing Weapon 1928 | -9/Exiles | Identified Longsword +1 1932 | -9/Exiles | Found Prototype Energy Cannon 1932 | -9/Exiles | Identified Firepult 1971 | -9/Exiles | Warned to stay clear of 0b10 Research branches 1989 | -9/Exiles | Met EX-DEC 2010 | -9/Exiles | Discovered new exit (range 10) 2014 | -9/Exiles | Identified exit to Mines 2014 | -9/Exiles | Left Exiles lab with Longsword +1 2014 | -9/Exiles | Entered Mines 2198 | -8/Mines | Reached level 8 2304 | -8/Mines | Build established: Scavenger-Scout 2361 | -8/Mines | Discovered exit to Materials (range 10) 2385 | -8/Mines | Entered Materials 2386 | -8/Materials | Identified exit to Storage 2387 | -8/Materials | Reached level 9 2433 | -8/Materials | Core integrity fell below 50% 2535 | -8/Materials | Reached level 10 2555 | -8/Materials | Discovered exit to Storage (range 5) 2676 | -8/Materials | Discovered new exit (range 15) 2690 | -8/Materials | Identified exit to Factory 2715 | -8/Materials | Upgraded with Utility slot (x1) 2736 | -8/Materials | Build established: Scout 2753 | -8/Materials | Reached level 11 2865 | -8/Materials | Garrison activated, responded to threat 2888 | -8/Materials | Discovered exit to Factory (range 20) 2953 | -8/Materials | Destroyed 11 combat bots 2979 | -8/Materials | Reached level 12 3011 | -8/Materials | Upgraded with Utility slot (x1) 3078 | -8/Materials | Discovered exit to Factory (range 16) 3200 | -8/Materials | Entered Factory 3202 | -7/Factory | Reached level 13 3311 | -7/Factory | Reached level 14 3323 | -7/Factory | Garrison activated, responded to threat 3530 | -7/Factory | Upgraded with Utility slot (x1) 3561 | -7/Factory | Identified exit to Garrison 3585 | -7/Factory | Garrison activated, responded to threat 3600 | -7/Factory | First assault squad dispatched 3651 | -7/Factory | Reached level 15 3900 | -7/Factory | Upgraded with Utility slot (x1) 3942 | -7/Factory | Discovered new exit (range 17) 4104 | -7/Factory | Upgraded with Utility slot (x1) 4291 | -7/Factory | Reached level 16 4291 | -7/Factory | Identified exit to Lower Caves 4442 | -7/Factory | Entered Lower Caves 4458 | -7/Lower Caves | Learned Factory terminal intel 4564 | -7/Lower Caves | Learned Factory terminal intel 4568 | -7/Lower Caves | Discovered new exit (range 5) 4570 | -7/Lower Caves | Identified exit to Lower Caves 4574 | -7/Lower Caves | Entered another Lower Caves area 4592 | -7/Lower Caves | Learned location of 1 exit from Factory 4639 | -7/Lower Caves | Encountered a Warlord checkpoint 4648 | -7/Lower Caves | Discovered new exit (range 9) 4652 | -7/Lower Caves | Identified exit to Data Miner 4652 | -7/Lower Caves | Spotted B-75 Beast 4652 | -7/Lower Caves | Entered Data Miner 4652 | -7/Data Miner | Discovered new exit (range 6) 4658 | -7/Data Miner | Build established: Scavenger-Scout 4661 | -7/Data Miner | Met Data Miner 4670 | -7/Data Miner | Learned location of Section 7 (-3) 4670 | -7/Data Miner | Acquired the access code to Warlord's prototype stash 4677 | -7/Data Miner | Received God Mode back door access code from Data Miner 4687 | -7/Data Miner | Identified exit to Proximity Caves 4687 | -7/Data Miner | Entered Proximity Caves 4689 | -6/Proximity Caves | Reached level 17 4714 | -6/Proximity Caves | Upgraded with Utility slot (x1) 4735 | -6/Proximity Caves | Learned Factory emergency access door positions 4743 | -6/Proximity Caves | Learned Factory interactive machine intel 4744 | -6/Proximity Caves | Learned location of Zion (-6) 4776 | -6/Proximity Caves | Attracted the attention of an 0b10 checkpoint 4777 | -6/Proximity Caves | Escorted by Enhanced Grunt 4931 | -6/Proximity Caves | Discovered new exit (range 15) 4937 | -6/Proximity Caves | Identified exit to Factory 4954 | -6/Proximity Caves | Entered Factory 4954 | -6/Factory | Accompanied by 1 ally 4955 | -6/Factory | Identified exit to Extension 4956 | -6/Factory | Reached level 18 4957 | -6/Factory | Loaded intel: 47 interactive machine locations 4958 | -6/Factory | Loaded intel: 21 terminal locations 5022 | -6/Factory | Garrison activated, responded to threat 5025 | -6/Factory | Identified exit to Garrison 5092 | -6/Factory | Entered Garrison 5092 | -6/Garrison | Accompanied by 1 ally 5094 | -6/Garrison | Reached level 19 5128 | -6/Garrison | Triggered checkpoint 5143 | -6/Garrison | Garrison Relay disabled 5174 | -6/Garrison | Triggered checkpoint 5203 | -6/Garrison | Triggered checkpoint 5257 | -6/Garrison | Discovered new exit (range 13) 5262 | -6/Garrison | Identified exit to Factory 5286 | -6/Garrison | Triggered checkpoint 5301 | -6/Garrison | Garrison Relay disabled 5434 | -6/Garrison | Garrison Relay disabled 5444 | -6/Garrison | Triggered checkpoint 5476 | -6/Garrison | Discovered exit to Factory (range 3) 5532 | -6/Garrison | Triggered checkpoint 5532 | -6/Garrison | Triggered checkpoint 5632 | -6/Garrison | Found Prototype Device 5632 | -6/Garrison | Identified Exp. Thermal Shield 5654 | -6/Garrison | Triggered checkpoint 5719 | -6/Garrison | Garrison Relay disabled 5719 | -6/Garrison | Reached level 20 5740 | -6/Garrison | Triggered checkpoint 5746 | -6/Garrison | Discovered exit to Factory (range 16) 5772 | -6/Garrison | Installed Relay Interface Framework 5931 | -6/Garrison | Upgraded with Utility slot (x1) 5994 | -6/Garrison | Entered Factory 5995 | -6/Factory | Loaded intel: 22 terminal locations 6134 | -6/Factory | Build established: Bothacker-Scout 6138 | -6/Factory | Discovered new exit (range 14) 6150 | -6/Factory | Identified exit to Factory 6207 | -6/Factory | Identified exit to Lower Caves 6245 | -6/Factory | Discovered exit to Factory (range 8) 6344 | -6/Factory | Fabricated Exp. Terrain Scanner (x1) 6344 | -6/Factory | First assault squad dispatched 6366 | -6/Factory | Incoming assault squad redirected 6401 | -6/Factory | Entered Extension 6410 | -6/Extension | Disrupted transfer network 6425 | -6/Extension | Rescued a captive Derelict 6468 | -6/Extension | Identified exit to Cetus 6486 | -6/Extension | Central database locked down 6486 | -6/Extension | Rescued a captive Derelict 6487 | -6/Extension | Rescued a captive Derelict 6505 | -6/Extension | Incoming investigation squad redirected 6566 | -6/Extension | Rescued a captive Derelict 6572 | -6/Extension | Spotted B-75 Beast 6576 | -6/Extension | Spotted B-75 Beast 6592 | -6/Extension | Destroyed B-75 Beast 6595 | -6/Extension | Allies destroyed B-75 Beast 6660 | -6/Extension | Discovered exit to Factory (range 3) 6674 | -6/Extension | Rescued a captive Derelict 6810 | -6/Extension | Rescued A7 6834 | -6/Extension | Discovered exit to Factory (range 10) 6880 | -6/Extension | Build established: Commander-Scout 6889 | -6/Extension | Entered Cetus 6889 | -6/Cetus | Accompanied by 11 allies 6894 | -6/Cetus | Acquired a Cetus Manufacturing Module code from A7 6906 | -6/Cetus | Spotted Cetus Guard 6906 | -6/Cetus | Spotted Cetus Guard 6908 | -6/Cetus | Spotted Cetus Guard 6915 | -6/Cetus | Spotted Cetus Guard 6919 | -6/Cetus | Destroyed Cetus Guard 6925 | -6/Cetus | Destroyed Cetus Guard 6927 | -6/Cetus | Allies destroyed Cetus Guard 6930 | -6/Cetus | Allies destroyed Cetus Guard 7013 | -6/Cetus | Reached level 21 7019 | -6/Cetus | Discovered exit to Factory (range 20) 7086 | -6/Cetus | Started Cetus Manufacturing Module 7091 | -6/Cetus | Escorted A7 to Cetus Mainframe 7111 | -6/Cetus | Manufactured an Enhanced Grunt 7116 | -6/Cetus | Discovered new exit (range 29) 7136 | -6/Cetus | Manufactured an Enhanced Grunt 7151 | -6/Cetus | Spotted Cetus Guard 7151 | -6/Cetus | Spotted Cetus Guard 7154 | -6/Cetus | Spotted Cetus Guard 7157 | -6/Cetus | Allies destroyed Cetus Guard 7157 | -6/Cetus | Spotted Cetus Guard 7159 | -6/Cetus | Rewired Cetus Guard 7161 | -6/Cetus | Manufactured an Enhanced Grunt 7167 | -6/Cetus | Allies destroyed Cetus Guard 7170 | -6/Cetus | Allies destroyed Cetus Guard 7173 | -6/Cetus | Discovered exit to Factory (range 16) 7179 | -6/Cetus | Met Revision 17 7186 | -6/Cetus | Manufactured an Enhanced Grunt 7202 | -6/Cetus | Upgraded with Propulsion slot (x1) 7211 | -6/Cetus | Manufactured an Enhanced Grunt 7314 | -6/Cetus | Destroyed A7 7320 | -6/Cetus | Extracted ID and sensor layout for unrecognized location from A7's data core 7333 | -6/Cetus | Identified exit to Archives 7372 | -6/Cetus | Entered Archives 7372 | -6/Archives | Accompanied by 11 allies 7379 | -6/Archives | Discovered new exit (range 24) 7404 | -6/Archives | Unable to access archive contents 7411 | -6/Archives | Discovered exit to Factory (range 25) 7417 | -6/Archives | Unable to access archive contents 7434 | -6/Archives | Identified exit to Hub_04(d) 7438 | -6/Archives | Discovered exit to Hub_04(d) (range 29) 7459 | -6/Archives | Entered Hub_04(d) 7459 | -6/Hub_04(d) | Accompanied by 10 allies 7498 | -6/Hub_04(d) | Garrison activated, responded to threat 7547 | -6/Hub_04(d) | Reached level 22 7564 | -6/Hub_04(d) | Discovered exit to Factory (range 25) 7590 | -6/Hub_04(d) | Discovered exit to Factory (range 30) 7676 | -6/Hub_04(d) | Garrison activated, responded to threat 7685 | -6/Hub_04(d) | High security lockdown imminent 7693 | -6/Hub_04(d) | Network Hub disabled 7693 | -6/Hub_04(d) | Spotted Lightning 7693 | -6/Hub_04(d) | Spotted Lightning 7693 | -6/Hub_04(d) | Spotted Lightning 7693 | -6/Hub_04(d) | Spotted Lightning 7693 | -6/Hub_04(d) | Spotted Lightning 7693 | -6/Hub_04(d) | Spotted Lightning 7693 | -6/Hub_04(d) | Spotted Lightning 7693 | -6/Hub_04(d) | Spotted Lightning 7694 | -6/Hub_04(d) | Spotted Lightning 7695 | -6/Hub_04(d) | Spotted Lightning 7717 | -6/Hub_04(d) | Network Hub disabled 7745 | -6/Hub_04(d) | Discovered exit to Factory (range 15) 7765 | -6/Hub_04(d) | High security lockdown engaged 7766 | -6/Hub_04(d) | Core integrity fell below 50% 7772 | -6/Hub_04(d) | Core integrity fell below 20% 7773 | -6/Hub_04(d) | Entered Factory 7774 | -5/Factory | Core integrity fell below 50% 7834 | -5/Factory | Discovered new exit (range 16) 7864 | -5/Factory | Identified exit to Upper Caves 7896 | -5/Factory | Identified exit to Garrison 7982 | -5/Factory | Upgraded with Power slot (x1) 8023 | -5/Factory | Entered Garrison 8025 | -5/Garrison | Reached level 23 8080 | -5/Garrison | Triggered checkpoint 8090 | -5/Garrison | Core integrity fell below 20% 8124 | -5/Garrison | Garrison Relay disabled 8170 | -5/Garrison | Triggered checkpoint 8174 | -5/Garrison | Triggered checkpoint 8183 | -5/Garrison | Build established: Bothacker-Scout 8282 | -5/Garrison | Triggered checkpoint 8287 | -5/Garrison | Garrison Relay disabled 8308 | -5/Garrison | Discovered new exit (range 13) 8313 | -5/Garrison | Identified exit to Factory 8317 | -5/Garrison | Expanded RIF knowledge: Coupler Efficiency 8360 | -5/Garrison | Discovered exit to Factory (range 14) 8386 | -5/Garrison | Triggered checkpoint 8433 | -5/Garrison | Garrison Relay disabled 8516 | -5/Garrison | Triggered checkpoint 8619 | -5/Garrison | Discovered exit to Factory (range 29) 8744 | -5/Garrison | Garrison Relay disabled 8744 | -5/Garrison | Spotted B-75 Beast 8789 | -5/Garrison | Destroyed B-75 Beast 8806 | -5/Garrison | Build established: Scavenger-Gunner 8858 | -5/Garrison | Triggered checkpoint 8880 | -5/Garrison | Garrison Relay disabled 9113 | -5/Garrison | Entered Factory 9113 | -5/Factory | Accompanied by 4 allies 9329 | -5/Factory | Fabricated Exp. Targeting Computer (x1) 9513 | -5/Factory | Local fabrication network quarantined 9517 | -5/Factory | Build established: Bothacker-Scout 9571 | -5/Factory | Garrison activated, responded to threat 9576 | -5/Factory | Reached level 24 9679 | -5/Factory | Identified exit to Garrison 9693 | -5/Factory | Entered Garrison 9693 | -5/Garrison | Accompanied by 3 allies 9852 | -5/Garrison | Triggered checkpoint 9855 | -5/Garrison | Garrison Relay disabled 9886 | -5/Garrison | Triggered checkpoint 9999 | -5/Garrison | Discovered new exit (range 14) 10028 | -5/Garrison | Garrison Relay disabled 10042 | -5/Garrison | Triggered checkpoint 10108 | -5/Garrison | Triggered checkpoint 10117 | -5/Garrison | Discovered new exit (range 12) 10133 | -5/Garrison | Triggered checkpoint 10166 | -5/Garrison | Garrison Relay disabled 10207 | -5/Garrison | High security lockdown imminent 10208 | -5/Garrison | Triggered checkpoint 10243 | -5/Garrison | Discovered new exit (range 22) 10263 | -5/Garrison | Identified exit to Factory 10266 | -5/Garrison | Expanded RIF knowledge: Robot Detection 10281 | -5/Garrison | Garrison Relay disabled 10287 | -5/Garrison | High security lockdown engaged 10318 | -5/Garrison | Entered Factory 10318 | -4/Factory | Accompanied by 3 allies 10320 | -4/Factory | Reached level 25 10501 | -4/Factory | Discovered new exit (range 30) 10538 | -4/Factory | Identified exit to Upper Caves 10538 | -4/Factory | Identified exit to Armory 10697 | -4/Factory | Identified exit to Garrison 10751 | -4/Factory | Entered Garrison 10751 | -4/Garrison | Accompanied by 6 allies 10753 | -4/Garrison | Reached level 26 10784 | -4/Garrison | Discovered new exit (range 27) 10811 | -4/Garrison | Garrison Relay disabled 10818 | -4/Garrison | Triggered checkpoint 10852 | -4/Garrison | Spotted B-86 Titan 10857 | -4/Garrison | Triggered checkpoint 10871 | -4/Garrison | Triggered checkpoint 10875 | -4/Garrison | Triggered checkpoint 11075 | -4/Garrison | Core integrity fell below 50% 11233 | -4/Garrison | Destroyed B-86 Titan 11254 | -4/Garrison | Destroyed 7 combat bots 11274 | -4/Garrison | Discovered new exit (range 10) 11280 | -4/Garrison | Triggered checkpoint 11285 | -4/Garrison | Build established: Scavenger-Scout 11308 | -4/Garrison | Garrison Relay disabled 11347 | -4/Garrison | Discovered new exit (range 10) 11351 | -4/Garrison | Identified exit to Factory 11353 | -4/Garrison | Expanded RIF knowledge: Alert ID Control 11373 | -4/Garrison | Garrison Relay disabled 11380 | -4/Garrison | Triggered checkpoint 11518 | -4/Garrison | Triggered checkpoint 11525 | -4/Garrison | Garrison Relay disabled 11554 | -4/Garrison | High security lockdown imminent 11614 | -4/Garrison | Triggered checkpoint 11627 | -4/Garrison | Garrison Relay disabled 11633 | -4/Garrison | Upgraded with Utility slot (x1) 11634 | -4/Garrison | High security lockdown engaged 11901 | -4/Garrison | Phase Generator disabled 11907 | -4/Garrison | P-70 Sage assimilated allied Sentinel 7d 11944 | -4/Garrison | Entered Factory 12056 | -4/Factory | Spotted B-86 Titan 12061 | -4/Factory | Build established: Bothacker-Scout 12149 | -4/Factory | Entered Upper Caves 12149 | -4/Upper Caves | Accompanied by 2 allies 12162 | -4/Upper Caves | Learned Research garrison access intel 12315 | -4/Upper Caves | Attracted the attention of an 0b10 checkpoint 12374 | -4/Upper Caves | Discovered new exit (range 11) 12378 | -4/Upper Caves | Identified exit to Upper Caves 12416 | -4/Upper Caves | Entered another Upper Caves area 12416 | -4/Upper Caves | Accompanied by 2 allies 12418 | -4/Upper Caves | Reached level 27 12553 | -4/Upper Caves | Learned Research emergency access door positions 12706 | -4/Upper Caves | Learned Extension security intel 12761 | -4/Upper Caves | Attracted the attention of an 0b10 checkpoint 12840 | -4/Upper Caves | Discovered new exit (range 24) 12864 | -4/Upper Caves | Identified exit to Warlord 12923 | -4/Upper Caves | Entered Warlord 12923 | -4/Warlord | Accompanied by 1 ally 12938 | -4/Warlord | Discovered new exit (range 15) 12971 | -4/Warlord | System corruption reached 10% 12975 | -4/Warlord | Opened side exit 12982 | -4/Warlord | RIF detected upon attempting to enter Warlord's base 12982 | -4/Warlord | Attacked by Warlord forces 13023 | -4/Warlord | Identified exit to Proximity Caves 13024 | -4/Warlord | Entered Proximity Caves 13398 | -3/Proximity Caves | Reached level 28 13411 | -3/Proximity Caves | Discovered new exit (range 26) 13615 | -3/Proximity Caves | Identified exit to Research 13648 | -3/Proximity Caves | Entered Research 13648 | -3/Research | Accompanied by 1 ally 13650 | -3/Research | Loaded intel: 3 garrison access locations 13706 | -3/Research | Identified exit to Quarantine 13761 | -3/Research | Found Prototype Device 13761 | -3/Research | Identified Imp. Particle Accelerator 13846 | -3/Research | Discovered new exit (range 14) 13848 | -3/Research | Revision forces began assault on 0b10 13910 | -3/Research | Identified exit to Research 13952 | -3/Research | Found Vibroblade 13984 | -3/Research | Spotted B-86 Titan 14020 | -3/Research | Met up with Revision 17++ 14047 | -3/Research | Reached level 29 14094 | -3/Research | Discovered exit to Research (range 21) 14148 | -3/Research | Local fabrication network quarantined 14189 | -3/Research | Fabricated Exp. Terrain Scanner (x1) 14348 | -3/Research | Research terminal network offline 14372 | -3/Research | Spotted B-90 Cyclops 14452 | -3/Research | Spotted Striker 14578 | -3/Research | Repaired Broken Imp. KE Penetrator 14728 | -3/Research | Identified exit to Garrison 14750 | -3/Research | Entered Garrison 14762 | -3/Garrison | Triggered checkpoint 14775 | -3/Garrison | Garrison Relay disabled 14797 | -3/Garrison | Spotted B-86 Titan 14837 | -3/Garrison | Triggered checkpoint 14857 | -3/Garrison | Allies destroyed B-86 Titan 14859 | -3/Garrison | Triggered checkpoint 14862 | -3/Garrison | Triggered checkpoint 14895 | -3/Garrison | Discovered exit to Research (range 25) 14906 | -3/Garrison | Discovered exit to Research (range 30) 14916 | -3/Garrison | Destroyed 8 combat bots 14963 | -3/Garrison | Expanded RIF knowledge: Autooverride 15008 | -3/Garrison | Triggered checkpoint 15011 | -3/Garrison | Garrison Relay disabled 15050 | -3/Garrison | Triggered checkpoint 15067 | -3/Garrison | Garrison Relay disabled 15072 | -3/Garrison | Triggered checkpoint 15081 | -3/Garrison | Upgraded with Utility slot (x1) 15182 | -3/Garrison | Discovered exit to Research (range 13) 15196 | -3/Garrison | Triggered checkpoint 15209 | -3/Garrison | Phase Generator disabled 15228 | -3/Garrison | Triggered checkpoint 15253 | -3/Garrison | Garrison Relay disabled 15329 | -3/Garrison | Entered Research 15329 | -2/Research | Accompanied by 2 allies 15331 | -2/Research | Reached level 30 15377 | -2/Research | Identified exit to Access 15399 | -2/Research | Upgraded with Utility slot (x1) 15427 | -2/Research | Found Prototype Processor 15427 | -2/Research | Identified Spectral Analyzer 15513 | -2/Research | Entered Access 15513 | -1/Access | Accompanied by 7 allies 15515 | -1/Access | Reached level 31 15515 | -1/Access | Reached level 32 15717 | -1/Access | Identified exit to Garrison 15717 | -1/Access | Entered Garrison 15746 | -1/Garrison | Phase Generator disabled 15761 | -1/Garrison | Garrison Relay disabled 15764 | -1/Garrison | Triggered checkpoint 15835 | -1/Garrison | Triggered checkpoint 15843 | -1/Garrison | Spotted B-99 Colossus 15866 | -1/Garrison | Reached level 33 15866 | -1/Garrison | Triggered checkpoint 15952 | -1/Garrison | Spotted B-99 Colossus 16006 | -1/Garrison | Triggered checkpoint 16019 | -1/Garrison | Spotted B-99 Colossus 16020 | -1/Garrison | Garrison Relay disabled 16046 | -1/Garrison | Garrison Relay disabled 16060 | -1/Garrison | Triggered checkpoint 16071 | -1/Garrison | Discovered new exit (range 11) 16123 | -1/Garrison | Identified exit to Access 16158 | -1/Garrison | Triggered checkpoint 16178 | -1/Garrison | Garrison Relay disabled 16179 | -1/Garrison | Discovered exit to Access (range 17) 16191 | -1/Garrison | Expanded RIF knowledge: Program Shield 16233 | -1/Garrison | Entered Access 16233 | -1/Access | Accompanied by 6 allies 16236 | -1/Access | Maximum security lockdown engaged 16239 | -1/Access | Garrison activated, responded to threat 16319 | -1/Access | Reached level 34 16415 | -1/Access | Spotted Executioner 16442 | -1/Access | Discovered new exit (range 27) 16494 | -1/Access | Spotted Executioner 16505 | -1/Access | Core integrity fell below 50% 16509 | -1/Access | Scanned by Researcher 16604 | -1/Access | Spotted B-99 Colossus 16606 | -1/Access | Spotted B-99 Colossus 16608 | -1/Access | Discovered new exit (range 15) 16615 | -1/Access | Core integrity fell below 20% 16624 | -1/Access | Identified exit to Surface 16624 | *** | Escaped! Last Messages --------------- 16614_ Slug penetrates Sealed Heavy Doors. 16614_ Slug penetrates B-99 Colossus. 16614_ Slug penetrates Sealed Heavy Doors. 16616_ B-99 Colossus activates siege mode. 16618_ Imp. Linear Gravjet destroyed. 16618_ Penetrated by Slug. 16618_ Slug penetrates Main Access Shell. 16618_ Penetrated by Slug. 16618_ Exp. Terrain Scanner destroyed. 16618_ Slug penetrates Main Access Shell. 16621_ Upgraded: Core Integrity (+150) 16621_ Main Access Shell breached. 16624_ EXIT=IDENTIFIED: SURFACE 16624_ Upgraded: Sensor Range (+2) 16624_ Upgraded: Ranged Accuracy (+10) 16624_ Upgraded: KI Resistance % (+5) 16624_ Upgraded: TH Resistance % (+5) 16624_ Upgraded: EX Resistance % (+5) 16624_ Upgraded: KI Damage % (+5) [Achievement: One Last FU] Map ----- +----------------------------------------------------+ | ???????????? ?? ?? ?+ ?""""? ################ | | ?????????????? ??# # ?"?????? #?##?######?#### | | ??????????? ?????#?u# " ? ?########?####### | | ??????????? ??? ?#??#? ??? ################ | | ???????##????? ? ?# ? ?###?###?####### | | ??????????#?? ??#??? ? ? #?####??#?###### | | ??????? ?? ?#? ?########?###########?####### | | ????????? ? ??????############?#########?#### | | ?????? ?#?? ?t?#####?###########??######??## | | ??????? ? #???? ?# #?##??######################"# | | ??????? p????##?#? #######?######?####### | | ????? ?? #? ??? ?###?#??############### | | ????????? ? ? ?? ?#??#?####?#########?## | | ?????????p#p?####?###?###??##?##?#######?#""""" | | ?????" ? ?p ?###?##???#??#?#####?###?#??#""""" | | ????""??? ? ?#???#?################?######""""" | | ??""?" ? #? #???########?###?##?###?#####""""" | | ?????#??#?? #?##?##???####?##?#########?#"""""w | | ???????????? #?#####?#??#?##?########?#### | | ??#??????#? ?#?#####"####################" | | ??????????# ??"T"""" "?"" " | | ????????#?? k??"?"??? ? """" BB # | | ???##?##?##???? ? ?" """""" p p BB ###+##### | | ???#??##??#ku ? ?? ???" " """"p gh YY Y g | | ????????##??u ? " " "" """ epp | | ????###?### ?? ? ? ?? " @" " "?"" | | ????##?#??# ? ???? ?"? " " """" | | ??#?####?#? ?? ? ?? """""" """" BB ######### | | ??????#???#? ?? ? ?? """" BB ######## | | ???###?###???? ? ? ? ? ? ""?" ##?####? | | ???#?##???? h??#?###"#####??##################### | | ???#??#?#?# ?####??#?#####??#?#??#?#####?######## | | ???????#??? ??#?#??#?#?#??##?###?###?########?## | | ?????? ?? # h? ??""?"""""" ???#? ? # | | ???? ? ? ?????? ?"""T"??" ? #???? ? ? # | | ????? ?? ?+C??? ? ?? ??#?## ??? """?" # | | ?????? ? ?kC# ? ? ? ? ?#?? ? ????"?""" # | | ?????? ? ????? ???? ?? ??? ??# ??? ? ? """?" # | | ?????? ?? ? ?k?? ? ? ???#?? ?? ?"""?? # | | ???????? ?#??#????? ? ###?? ? ?"""" ## | | ??????????? # k?? ? ? ? #### ? ? ? ???## | | ??????????#??# ?? ??? ? #?## ?? ????? ## | | ????????? #??? ? ??p? ?###???? ? ? ? ## | | ??????????? ??#?+????####???#?#???#??#?#+#????#### | | ??????????? ?? ??? ?????? ?? ? ?? ?? ??? | | ?????????????? ???? ? ? ? ? ? ? ? ? | | ???????????????#+????#?#??###??#?#?##??#????+?#### | | ??????????????????? ? ?#?? ?? ?? ???##? ? | | ??????????????????? ??#??? ??? ??###? ?? ? | | ?????????????????? ??? ?#? ? ? #?#? ? ?? ????? | +----------------------------------------------------+ Best States ------------- Heat Dissipation 37 Energy Generation 31 Energy Capacity 1040 Matter Stores 300 Matter Capacity 400 Sight Range 16 Robot Scan Range 24 Terrain Scan Range 30 Terrain Scan Density 610 Armor Coverage 450 Resistance: KI 5 Resistance: TH 5 Phase Shifting 5 Evasion (%) 73 Targeting Accuracy 12 Melee Accuracy 18 Target Analysis 8 Core Analysis 10 Offensive Hacking 5 Defensive Hacking 5 Item Schematics ----------------- Grenade Launcher | -9/Materials | Scanalyzed Sensor Array | -9/Materials | Scanalyzed Combat Drone Bay | -7/Data Miner | Free Lgt. Regenerative Plating | -7/Data Miner | Free Exp. Cesium-ion Thruster | -7/Data Miner | Free Exp. Terrain Scanner | -7/Data Miner | Free Exp. Terrain Scan Processor | -7/Data Miner | Free Exp. Targeting Computer | -7/Data Miner | Free Exp. Transmission Jammer | -7/Data Miner | Free Kinetic Spear | -7/Data Miner | Free Hyp. Coil Gun | -6/Extension | Hacked Adv. Melee Analysis Suite | -6/Extension | Hacked Adv. Sensor Array | -3/Research | Scanalyzed Robot Schematics ------------------ T-07 Excavator | -7/Factory | Downloaded S-27 Virus | -7/Data Miner | Free G-50 Soldier | -7/Data Miner | Free G-67 Veteran | -7/Data Miner | Free L-41 Fighter | -7/Data Miner | Free P-70 Sage | -7/Data Miner | Free I-36 Angel | -7/Data Miner | Free I-47 Archangel | -7/Data Miner | Free H-66 Slayer | -6/Factory | Hacked Fabricated ------------ Exp. Terrain Scanner | x1 | -6/Factory Exp. Targeting Computer | x1 | -5/Factory Exp. Terrain Scanner | x1 | -3/Research Alien Tech Used ----------------- None Achievements -------------- Great Explorer Most Wanted One Last FU Challenges ------------ None RPGLIKE | -11 -10 -10 -9 -9 -9 -8 -8 -7 -7 -7 -7 -6 -6 -6 -6 -6 -6 -6 -6 -5 -5 -5 -5 -4 -4 -4 -4 -4 -4 -3 -3 -3 -2 -1 -1 -1 --------- Run | Scr Mat Min Mat Min Exi Min Mat Fac Low Low Dat Pro Fac Gar Fac Ext Cet Arc Hub Fac Gar Fac Gar Fac Gar Fac Upp Upp War Pro Res Gar Res Acc Gar Acc Levels Raised 33 | . . 1 4 . 1 1 4 4 . . . 1 1 2 . . 1 . 1 . 1 1 . 1 1 . . 1 . 1 1 . 1 2 1 1 XP Earned 52974 | 3000 1300 750 6311 500 350 2125 5927 5441 170 170 220 1856 1702 1858 162 768 1004 243 1389 616 1061 730 748 1918 1432 30 204 391 82 1260 1396 942 1811 2000 2108 999 XP Spent 52420 | 2900 . 940 1400 . 2450 . 5675 8800 300 . . 2900 . 3200 1100 1750 800 350 625 500 875 . . . 3500 . . . . . . 3800 4100 . . 6455 Upgrades 83 | 8 . 3 11 . 3 . 7 6 2 . . 1 . 1 1 1 1 2 5 1 5 . . . 1 . . . . . . 1 1 . . 22 Power Slot 1 | . . . . . . . . . . . . . . . . . . . . 1 . . . . . . . . . . . . . . . . Propulsion Slot 2 | 1 . . . . . . . . . . . . . . . . 1 . . . . . . . . . . . . . . . . . . . Utility Slot 13 | 1 . . 1 . 1 . 2 3 . . . 1 . 1 . . . . . . . . . . 1 . . . . . . 1 1 . . . Weapon Slot 2 | 1 . 1 . . . . . . . . . . . . . . . . . . . . . . . . . . . . . . . . . . Core Integrity 31 | . . . 8 . . . . . . . . . . . . . . . 5 . 5 . . . . . . . . . . . . . . 13 Heat Dissipation 2 | . . . 2 . . . . . . . . . . . . . . . . . . . . . . . . . . . . . . . . . Mass Support 3 | 1 . . . . 1 . . . . . . . . . 1 . . . . . . . . . . . . . . . . . . . . . Inventory Capacity 7 | 2 . . . . 1 . 2 1 . . . . . . . 1 . . . . . . . . . . . . . . . . . . . . Sensor Range 3 | . . . . . . . 2 . . . . . . . . . . . . . . . . . . . . . . . . . . . . 1 Terrain Scan Density 6 | . . 2 . . . . . . 2 . . . . . . . . . . . . . . . . . . . . . . . . . . 2 Ranged Accuracy 3 | 1 . . . . . . . . . . . . . . . . . . . . . . . . . . . . . . . . . . . 2 Melee Accuracy 1 | . . . . . . . 1 . . . . . . . . . . . . . . . . . . . . . . . . . . . . . Hack Attack % 1 | . . . . . . . . 1 . . . . . . . . . . . . . . . . . . . . . . . . . . . . Hack Defense % 1 | . . . . . . . . 1 . . . . . . . . . . . . . . . . . . . . . . . . . . . . KI Resistance % 2 | 1 . . . . . . . . . . . . . . . . . . . . . . . . . . . . . . . . . . . 1 TH Resistance % 2 | . . . . . . . . . . . . . . . . . . 1 . . . . . . . . . . . . . . . . . 1 EX Resistance % 1 | . . . . . . . . . . . . . . . . . . . . . . . . . . . . . . . . . . . . 1 KI Damage % 2 | . . . . . . . . . . . . . . . . . . 1 . . . . . . . . . . . . . . . . . 1 Protomatter Created 5098 | . 44 . 263 . . 91 222 1090 . . . 40 68 291 89 58 231 . 60 74 434 95 378 -11 364 . 65 307 . 202 134 246 66 . 154 43 Integrity Restored 17547 | . 129 . 573 . . 273 690 2457 . . . 171 144 1129 263 489 580 . 564 222 1335 888 1338 674 1242 . 381 606 . 702 1057 614 192 . 348 486 Core 14130 | . 116 . 573 . . 273 690 1810 . . . 80 108 1064 117 325 297 . 405 222 1335 705 795 252 1239 . 381 606 . 702 761 346 94 . 348 486 Parts 3417 | . 13 . . . . . . 647 . . . 91 36 65 146 164 283 . 159 . . 183 543 422 3 . . . . . 296 268 98 . . . Protomatter Decayed 5770 | . . . . 47 . . . 189 . . . 16 10 165 . 18 295 . 628 74 39 38 84 -11 779 25 . 139 . . 2545 77 58 . 245 310 Game ------ Seed DecoderBeamRigger Manual? 0 Play Time 07:35:54 Cumulative 382.8 hours Start 2020.01.14 @ 13:44:09 End 2020.01.15 @ 00:26:48 Sessions 11 Manual Loads 0 Difficulty Rogue Special Mode Winter2019/RPGLIKE Game No. 146 Rogue 146 Adventurer 0 Explorer 0 Win Type 0 Total 13 Types 9/1/1/2/0/0/0 Lore% 88 Gallery% 86 Achievement% 70 Wizard Run 0 Options --------- ASCII 0 Keyboard 0 Movement Numpad Keybinds 0 Fullscreen 0 Font 14/Dina Map View 76x50 Tactical HUD 1 Map Filters NONE Filters NONE Steam 1 RUN: c1983d07-017e-4ad6-a593-6a52b32abe29